Workbook

Sheet INFO
B2: 500 calibres référencés

Sheet CIP
A1: ORD1 | B1: ORD2 | C1: Calibre | D1: L1 | E1: L2 | F1: L3 | G1: L4 | H1: L5 | I1: L6 | J1: R | K1: R1 | L1: R3 | M1: E | N1: E1 | O1: EMIN | P1: DELTA | Q1: F | R1: BETA | S1: P1 | T1: P2 | U1: ALPHA | V1: S | W1: R1MIN | X1: R2 | Y1: H1 | Z1: H2 | AA1: G1 | AB1: G2 | AC1: L3PG | AD1: PO | AE1: TYPE | AF1: AM | AG1: SH | AH1: COL | AI1: PIL | AJ1: PMAX | AK1: PK | AL1: PE | AM1: M | AN1: EE | AO1: FC | AP1: ZC | AQ1: B | AR1: N | AS1: U | AT1: ORIG | AU1: MS | AV1: ARME | CB1: (Source C.I.P.)
A2: 1 | B2: 287 | C2: 4 Bore Rifle | F2: 101.5 | I2: 119.3 | J2: 1.5 | K2: 31.3 | N2: 27.8 | O2: 0.5 | S2: 28 | Z2: 27.15 | AA2: 25.4 | AB2: 18 | AC2: 115.1 | AD2: US | AE2: b | AJ2: 2500 | AK2: 2875 | AL2: 3125 | AM2: 25 | AN2: 10500 | AO2: 24.91 | AP2: 25.4 | AQ2: 6.5 | AR2: 8 | AT2: C.I.P. | AU2: pouce | AV2: carabine | CB2: SYNONYMES | CC2: CALIBRES | CD2: INFO
A3: 2 | B3: 326 | C3: 4,6 x 30 | D3: 23.02 | E3: 26.03 | F3: 30.5 | I3: 38.5 | J3: 1.1 | K3: 8 | M3: 2.87 | N3: 6.8 | O3: 0.9 | P3: 35° | Q3: 0.25 | R3: 45° | S3: 8.02 | T3: 7.75 | U3: 44°07'37" | V3: 32.85 | W3: 1.7 | X3: 2 | Y3: 5.31 | Z3: 5.31 | AA3: 4.65 | AC3: 37.55 | AD3: DE | AE3: p /g | AJ3: 4000 | AK3: 4600 | AL3: 5200 | AM3: 17.5 | AO3: 4.52 | AP3: 4.65 | AQ3: 1.21 | AR3: 6 | AS3: 160 | AT3: C.I.P. | AU3: metrique | AV3: revolvers et pistolets | CB3: 10 x 38 | CC3: 401 Win. SL
A4: 3 | B4: 1 | C4: 5 mm /35 SMc | D4: 27.51 | E4: 31.72 | F4: 39.52 | I4: 53.34 | J4: 1.37 | K4: 12.01 | M4: 3.85 | N4: 10.39 | O4: 1.4 | P4: 36° | Q4: 0.4 | R4: 45° | S4: 11.96 | T4: 11.6 | X4: 0.32 | Y4: 5.95 | Z4: 5.94 | AA4: 5.18 | AC4: 44.75 | AD4: US | AE4: g | AJ4: 4400 | AK4: 5060 | AL4: 5500 | AM4: 17.5 | AN4: 1650 | AO4: 5.05 | AP4: 5.18 | AQ4: 1.3 | AR4: 6 | AS4: 305 | AT4: C.I.P. | AU4: metrique | AV4: carabine | CB4: 10 x 65,5 | CC4: 405 Win.
A5: 4 | C5: 5.2 x 68 Mondragón | D5: 62.3 | E5: 64.46 | F5: 68.01 | I5: 77.29 | J5: 1.63 | K5: 12.54 | M5: 3.73 | N5: 10.3 | O5: 0.6 | Q5: 0.5 | R5: 45° | S5: 12.48 | T5: 11.39 | Y5: 6.31 | Z5: 6.08 | AA5: 5.24 | AE5: b | AT5: E.C.R.A. | CB5: 10,2 x 76 R | CC5: 400 Purdey 3‘‘
A6: 5 | B6: 2 | C6: 5,45 x 39 | D6: 30 | E6: 34 | F6: 39.82 | I6: 57 | J6: 1.5 | K6: 10 | M6: 3.2 | N6: 8.6 | O6: 1 | P6: 45° | Q6: 0.5 | R6: 45° | S6: 10 | T6: 9.25 | U6: 40°36'32" | V6: 42.5 | Y6: 6.29 | Z6: 6.29 | AA6: 5.6 | AC6: 44.79 | AD6: SU | AE6: g | AJ6: 3800 | AK6: 4370 | AL6: 4750 | AM6: 17.5 | AN6: 1505 | AO6: 5.4 | AP6: 5.6 | AQ6: 2.6 | AR6: 4 | AS6: 255 | AT6: C.I.P. | AU6: metrique | AV6: carabine | CB6: 10,3 mm M 30 Schweiz | CC6: 10,3 x 60 R
A7: 6 | B7: 327 | C7: 5,45 x 18 | D7: 12.07 | E7: 14 | F7: 18.03 | I7: 25 | J7: 1.13 | K7: 7.64 | M7: 2.9 | N7: 6.58 | P7: 16°40'10" | S7: 7.64 | T7: 7.4 | U7: 32°54'28" | V7: 24.6 | Y7: 6.26 | Z7: 6.26 | AA7: 5.63 | AC7: 21.89 | AD7: SU | AE7: p /g | AJ7: 1750 | AK7: 2013 | AL7: 2275 | AM7: 9 | AO7: 5.45 | AP7: 5.6 | AQ7: 2 | AR7: 6 | AS7: 270 | AT7: C.I.P. | AU7: metrique | AV7: revolvers et pistolets | CB7: 10,3 x 38 | CC7: 401 Win. SL
A8: 7 | B8: 156 | C8: 5,6 x 35 R | D8: 20 | E8: 25 | F8: 35.5 | I8: 43.5 | J8: 1.4 | K8: 8.85 | S8: 7.55 | T8: 7.05 | U8: 8°00'29" | V8: 70.36 | W8: 0.5 | X8: 0.5 | Y8: 6.35 | Z8: 6.33 | AA8: 5.63 | AC8: 55.3 | AD8: DE | AE8: b | AJ8: 2700 | AK8: 3105 | AL8: 3510 | AM8: 17.5 | AN8: 855 | AO8: 5.35 | AP8: 5.58 | AQ8: 2.4 | AR8: 4 | AS8: 360 | AT8: C.I.P. | AU8: metrique | AV8: carabine | CB8: 10,3 x 60 R Schw. | CC8: 10,3 x 60 R
A9: 8 | B9: 3 | C9: 5,6 x 39 | D9: 27 | E9: 32.2 | F9: 38.7 | I9: 48.7 | J9: 1.5 | K9: 11.35 | M9: 3.2 | N9: 9.56 | O9: 1 | P9: 51°58'13" | S9: 11.35 | T9: 10.2 | U9: 41°12'31" | V9: 40.57 | W9: 0.5 | X9: 2 | Y9: 6.29 | Z9: 6.29 | AA9: 5.67 | AC9: 49.01 | AD9: RU | AE9: g | AJ9: 3500 | AK9: 4025 | AL9: 4375 | AM9: 17.5 | AN9: 2100 | AO9: 5.45 | AP9: 5.59 | AQ9: 2 | AR9: 6 | AS9: 420 | AT9: C.I.P. | AU9: metrique | AV9: carabine | CB9: 10,3 x 60 R Schweiz M 30 | CC9: 10,3 x 60 R
A10: 9 | B10: 7 | C10: 5,7 x 28 | D10: 23.15 | E10: 24.27 | F10: 28.9 | H10: 31.44 | I10: 40.5 | J10: 1.14 | K10: 7.8 | M10: 3.38 | N10: 6.6 | O10: 0.79 | P10: 25° | Q10: 0.28 | R10: 45° | S10: 7.95 | T10: 7.95 | U10: 70°03'10" | V10: 28.82 | X10: 1 | Y10: 6.38 | Z10: 6.38 | AA10: 5.7 | AB10: 5.26 | AC10: 35.35 | AD10: BE | AE10: g | AJ10: 3450 | AK10: 3968 | AL10: 4313 | AM10: 12 | AN10: 1500 | AO10: 5.53 | AP10: 5.62 | AQ10: 1.63 | AR10: 8 | AS10: 228.6 | AT10: C.I.P. | AU10: metrique | AV10: carabine | CB10: 10,3 x 60 R Swiss | CC10: 10,3 x 60 R
A11: 10 | B11: 4 | C11: 5,6 x 50 Mag. | D11: 40.26 | E11: 43.23 | F11: 50 | I11: 61.3 | J11: 1.14 | K11: 9.6 | M11: 3.1 | N11: 8.44 | O11: 0.8 | P11: 25°45' | Q11: 0.5 | R11: 45° | S11: 9.56 | T11: 9 | U11: 45°58'38" | V11: 50.87 | W11: 0.5 | X11: 0.5 | Y11: 6.48 | Z11: 6.48 | AA11: 5.7 | AC11: 51.8 | AD11: DE | AE11: g | AJ11: 3800 | AK11: 4370 | AL11: 4750 | AM11: 25 | AN11: 1915 | AO11: 5.56 | AP11: 5.69 | AQ11: 2 | AR11: 6 | AS11: 350 | AT11: C.I.P. | AU11: metrique | AV11: carabine | CB11: 10,5 x 17 - 442 kurz | CC11: 442 Webley | CD11: N
A12: 11 | B12: 157 | C12: 5,6 x 50 R Mag. | D12: 40.26 | E12: 43.23 | F12: 50 | I12: 61 | J12: 1.4 | K12: 10.9 | Q12: 0.5 | R12: 45° | S12: 9.59 | T12: 9 | U12: 45°58'38" | V12: 50.87 | W12: 0.5 | X12: 0.5 | Y12: 6.48 | Z12: 6.48 | AA12: 5.7 | AC12: 51.8 | AD12: DE | AE12: b | AJ12: 3400 | AK12: 3910 | AL12: 4250 | AM12: 25 | AN12: 1950 | AO12: 5.56 | AP12: 5.69 | AQ12: 2 | AR12: 6 | AS12: 350 | AT12: C.I.P. | AU12: metrique | AV12: carabine | CB12: 10,5 x 65 R | CC12: 405 Win.
A13: 12 | B13: 161 | C13: 5,6 x 70 R | D13: 59.84 | E13: 61.12 | F13: 70 | I13: 87 | J13: 1.52 | K13: 10.7 | Q13: 0.3 | R13: 45° | S13: 9.03 | T13: 7.52 | U13: 40° | V13: 70.17 | W13: 0.5 | X13: 0.5 | Y13: 6.59 | Z13: 6.59 | AA13: 5.7 | AC13: 74.06 | AD13: DE | AE13: b | AJ13: 2600 | AK13: 2990 | AL13: 3250 | AM13: 25 | AN13: 1785 | AO13: 5.56 | AP13: 5.69 | AQ13: 2 | AR13: 6 | AS13: 290 | AT13: C.I.P. | AU13: metrique | AV13: carabine | CB13: 10,5 x 74 | CC13: 416 Rigby
A14: 13 | B14: 5 | C14: 5,6 x 57 | D14: 44.51 | E14: 50.41 | F14: 56.7 | I14: 69 | J14: 1.3 | K14: 11.95 | M14: 3.2 | N14: 10.5 | O14: 1 | P14: 37°52'48" | Q14: 0.3 | R14: 45° | S14: 11.9 | T14: 10.94 | U14: 34°49'06" | V14: 61.95 | W14: 0.5 | X14: 0.5 | Y14: 7.24 | Z14: 7.1 | AA14: 5.7 | AC14: 67.5 | AD14: DE | AE14: g | AJ14: 4400 | AK14: 5060 | AL14: 5500 | AM14: 25 | AN14: 2725 | AO14: 5.54 | AP14: 5.69 | AQ14: 2 | AR14: 6 | AS14: 250 | AT14: C.I.P. | AU14: metrique | AV14: carabine | CB14: 10,75 (10,5) mm Mauser | CC14: 10,75 x 68
A15: 14 | B15: 159 | C15: 5,6 x 57 R | D15: 44.37 | E15: 50.28 | F15: 56.7 | I15: 69 | J15: 1.4 | K15: 13.32 | Q15: 0.3 | R15: 45° | S15: 11.94 | T15: 10.94 | U15: 34°49'05" | V15: 61.82 | W15: 0.5 | X15: 0.5 | Y15: 7.24 | Z15: 7.1 | AA15: 5.7 | AC15: 67.5 | AD15: DE | AE15: b | AJ15: 4400 | AK15: 5060 | AL15: 5500 | AM15: 25 | AN15: 2720 | AO15: 5.54 | AP15: 5.69 | AQ15: 2 | AR15: 6 | AS15: 250 | AT15: C.I.P. | AU15: metrique | AV15: carabine | CB15: 10,75 mm Mauser | CC15: 10,75 x 68
A16: 15 | B16: 160 | C16: 5,6 x 61 R SE v. H. | D16: 44 | E16: 53.05 | F16: 61 | I16: 80 | J16: 1.6 | K16: 13.6 | Q16: 0.3 | R16: 45° | S16: 12.22 | T16: 11.6 | U16: 30° | V16: 65.65 | W16: 0.5 | X16: 0.5 | Y16: 6.75 | Z16: 6.68 | AA16: 5.76 | AC16: 76 | AD16: DE | AE16: b | AJ16: 3800 | AK16: 4370 | AL16: 4750 | AM16: 25 | AN16: 2945 | AO16: 5.58 | AP16: 5.76 | AQ16: 2.6 | AR16: 4 | AS16: 220 | AT16: C.I.P. | AU16: metrique | AV16: carabine | CB16: 10,75 x 33,3 USA Win.Rep. | CC16: 44-40 Win.
A17: 16 | B17: 328 | C17: 5,75 Velodog | F17: 29.6 | G17: 32.8 | I17: 35.6 | J17: 1.3 | K17: 7.8 | Q17: 0.3 | R17: 45° | S17: 6.42 | Z17: 6.3 | AA17: 5.79 | AB17: 5.65 | AC17: 32.6 | AD17: FR | AE17: p /b | AJ17: 680 | AK17: 782 | AL17: 884 | AM17: 17.5 | AO17: 5.5 | AP17: 5.75 | AQ17: 2.3 | AR17: 4 | AS17: 454 | AT17: C.I.P. | AU17: metrique | AV17: revolvers et pistolets | CB17: 10,75 x 68 Mauser | CC17: 10,75 x 68
A18: 17 | B18: 158 | C18: 5,6 x 52 R | D18: 35.03 | E18: 41.62 | F18: 52 | I18: 63.75 | J18: 1.6 | K18: 12.5 | Q18: 0.3 | R18: 45° | S18: 10.62 | T18: 9.2 | U18: 23°59'16" | V18: 56.68 | W18: 0.5 | X18: 0.5 | Y18: 6.4 | Z18: 6.4 | AA18: 5.79 | AC18: 70 | AD18: DE | AE18: b | AJ18: 3300 | AK18: 3795 | AL18: 4125 | AM18: 25 | AN18: 1830 | AO18: 5.55 | AP18: 5.75 | AQ18: 2 | AR18: 6 | AS18: 270 | AT18: C.I.P. | AU18: metrique | AV18: carabine | CB18: 10,75 x 73 | CC18: 404 Riml. N.E.
A19: 18 | B19: 6 | C19: 5,6 x 61 SE.v.H. | D19: 44.01 | E19: 53.06 | F19: 61 | I19: 80 | J19: 1.5 | K19: 12.2 | M19: 3 | N19: 10.5 | O19: 1 | P19: 59°31'48" | Q19: 0.3 | R19: 45° | S19: 12.2 | T19: 11.6 | U19: 30°00'02" | V19: 65.66 | W19: 0.5 | X19: 0.5 | Y19: 6.75 | Z19: 6.68 | AA19: 5.79 | AC19: 75.5 | AD19: DE | AE19: g | AJ19: 4400 | AK19: 5060 | AL19: 5500 | AM19: 25 | AN19: 3005 | AO19: 5.58 | AP19: 5.76 | AQ19: 2 | AR19: 6 | AS19: 220 | AT19: C.I.P. | AU19: metrique | AV19: carabine | CB19: 10,9 x 17,5 - R.N. 442 k | CC19: 442 Webley | CD19: N
A20: 19 | B20: 466 | C20: 6 mm PPC ITA | D20: 27.3 | E20: 31 | F20: 37.9 | I20: 55.7 | J20: 1.5 | K20: 11.18 | M20: 3.5 | N20: 9.6 | O20: 1.2 | P20: 43°43'12" | Q20: 0.4 | R20: 35° | S20: 11.13 | T20: 10.92 | U20: 60° | V20: 36.76 | W20: 1.52 | X20: 1.52 | Y20: 6.63 | Z20: 6.63 | AA20: 6.17 | AC20: 42.08 | AD20: ITA | AE20: g | AJ20: 4050 | AK20: 4658 | AL20: 5265 | AM20: 17.5 | AN20: 2250 | AO20: 6.02 | AP20: 6.17 | AQ20: 2.29 | AR20: 6 | AS20: 551 | AT20: C.I.P. | AU20: metrique | AV20: carabine | CB20: 10.4 x 22 mm | CC20: 41 ACT EXP
A21: 20 | B21: 14 | C21: 6 mm PPC | D21: 27.3 | E21: 31 | F21: 38.18 | I21: 55.7 | J21: 1.5 | K21: 11.18 | M21: 3.5 | N21: 9.6 | O21: 1.2 | P21: 43°43'12" | Q21: 0.4 | R21: 35° | S21: 11.13 | T21: 10.92 | U21: 60° | V21: 36.76 | Y21: 6.65 | Z21: 6.65 | AA21: 6.17 | AC21: 43.76 | AD21: US | AE21: g | AJ21: 4050 | AK21: 4658 | AL21: 5060 | AM21: 17.5 | AN21: 2250 | AO21: 6.02 | AP21: 6.17 | AQ21: 2.29 | AR21: 6 | AS21: 551 | AT21: C.I.P. | AU21: metrique | AV21: carabine | CB21: 11 x 18 - 450 kurz | CC21: 450 Short
A22: 21 | B22: 8 | C22: 6 x 47 ATZL | D22: 37.08 | E22: 39.93 | F22: 47 | I22: 63 | J22: 1.14 | K22: 9.6 | M22: 3.11 | N22: 8.43 | O22: 0.76 | P22: 25° | Q22: 0.45 | R22: 35° | S22: 9.56 | T22: 9.07 | U22: 46°00'30" | V22: 47.46 | W22: 0.64 | X22: 2.54 | Y22: 6.65 | Z22: 6.65 | AA22: 6.17 | AC22: 52.57 | AD22: AT | AE22: g | AJ22: 4050 | AK22: 4660 | AL22: 5060 | AM22: 25 | AN22: 2100 | AO22: 6.02 | AP22: 6.17 | AQ22: 2.29 | AR22: 6 | AS22: 356 | AT22: C.I.P. | AU22: metrique | AV22: carabine | CB22: 11 x 33 R | CC22: 44-40 Win.
A23: 22 | B23: 10 | C23: 6 x 51 ATZL | D23: 40.27 | E23: 43.03 | F23: 51 | I23: 68 | J23: 1.14 | K23: 9.6 | M23: 3.1 | N23: 8.44 | O23: 0.8 | P23: 25°46'09" | Q23: 0.5 | R23: 45° | S23: 9.56 | T23: 9 | U23: 46°07'17" | V23: 50.84 | W23: 0.5 | X23: 0.5 | Y23: 6.65 | Z23: 6.65 | AA23: 6.17 | AC23: 56.57 | AD23: AT | AE23: g | AJ23: 4050 | AK23: 4658 | AL23: 5060 | AM23: 25 | AN23: 2100 | AO23: 6.02 | AP23: 6.17 | AQ23: 2.29 | AR23: 6 | AS23: 356 | AT23: C.I.P. | AU23: metrique | AV23: carabine | CB23: 11 x 71,5 Roth | CC23: 11,2 x 72 Schueler | CD23: N
A24: 23 | B24: 162 | C24: 6 x 50 R Scheiring | D24: 40.26 | E24: 42.87 | F24: 50 | I24: 69 | J24: 1.4 | K24: 10.9 | Q24: 0.5 | R24: 45° | S24: 9.59 | T24: 9 | U24: 46°04'44" | V24: 50.84 | W24: 0.5 | X24: 0.5 | Y24: 6.78 | Z24: 6.75 | AA24: 6.17 | AC24: 56 | AD24: AT | AE24: b | AJ24: 4400 | AK24: 5060 | AL24: 5500 | AM24: 25 | AN24: 2100 | AO24: 6.02 | AP24: 6.17 | AQ24: 1.73 | AR24: 6 | AS24: 254 | AT24: C.I.P. | AU24: metrique | AV24: carabine | CB24: 11,15 mm Mauser | CC24: 11,15 x 60 R
A25: 24 | B25: 465 | C25: 6 mm D.B.G. | D25: 32.82 | E25: 35.91 | F25: 41 | I25: 58 | J25: 1.24 | K25: 10.72 | M25: 3.15 | N25: 9.09 | O25: 0.84 | P25: 36° | Q25: 0.38 | R25: 35° | S25: 10.65 | T25: 10.34 | U25: 60° | V25: 41.77 | Y25: 6.77 | Z25: 6.77 | AA25: 6.17 | AC25: 44.84 | AD25: ITA | AE25: g | AJ25: 4150 | AK25: 4773 | AL25: 5188 | AM25: 25 | AN25: 2100 | AO25: 6.02 | AP25: 6.17 | AQ25: 1.73 | AR25: 6 | AS25: 254 | AT25: C.I.P. | AU25: metrique | AV25: carabine | CB25: 11,15 x 59,8 Roth | CC25: 11,2 x 60 | CD25: N
A26: 25 | B26: 164 | C26: 6 x 52 R Bretschneider | D26: 35.04 | E26: 40.73 | F26: 52 | I26: 68.5 | J26: 1.6 | K26: 12.5 | Q26: 0.3 | R26: 45° | S26: 10.62 | T26: 9.2 | U26: 24°00'38" | V26: 56.67 | W26: 0.5 | X26: 0.5 | Y26: 6.78 | Z26: 6.78 | AA26: 6.17 | AC26: 58.67 | AD26: DE | AE26: b | AJ26: 3300 | AK26: 3795 | AL26: 4125 | AM26: 25 | AN26: 2205 | AO26: 6.02 | AP26: 6.17 | AQ26: 1.73 | AR26: 6 | AS26: 254 | AT26: C.I.P. | AU26: metrique | AV26: carabine | CB26: 11,15 x 59,8 Schueler | CC26: 11,2 x 60 | CD26: N
A27: 26 | B27: 464 | C27: 6 mm BR Farè | D27: 30.31 | E27: 33.17 | F27: 39.24 | I27: 62 | J27: 1.37 | K27: 11.97 | M27: 3.83 | N27: 10.39 | O27: 1.4 | P27: 36° | Q27: 0.4 | R27: 45° | S27: 11.93 | T27: 11.64 | U27: 80°14'19" | V27: 37.22 | W27: 0.25 | X27: 1.5 | Y27: 6.82 | Z27: 6.82 | AA27: 6.17 | AC27: 46.03 | AD27: ITA | AE27: g | AJ27: 4400 | AK27: 5060 | AL27: 5500 | AM27: 17.5 | AN27: 2545 | AO27: 6.02 | AP27: 6.17 | AQ27: 2.29 | AR27: 6 | AS27: 203.2 | AT27: C.I.P. | AU27: metrique | AV27: carabine | CB27: 11,15 x 60 R Mauser Mle 1871 | CC27: 11,15 x 60 R
A28: 27 | B28: 15 | C28: 6 mm PPC-USA | D28: 27.3 | E28: 30.87 | F28: 38.48 | I28: 55.7 | J28: 1.5 | K28: 11.3 | M28: 3.5 | N28: 9.6 | O28: 1.1 | P28: 42°43'12" | Q28: 0.4 | R28: 45° | S28: 11.26 | T28: 10.95 | U28: 60°05'34" | V28: 36.77 | W28: 1 | X28: 3 | Y28: 6.82 | Z28: 6.82 | AA28: 6.17 | AC28: 43.96 | AD28: FI | AE28: g | AJ28: 4050 | AK28: 4658 | AL28: 5060 | AM28: 17.5 | AN28: 2020 | AO28: 6 | AP28: 6.14 | AQ28: 2.28 | AR28: 6 | AS28: 305 | AT28: C.I.P. | AU28: metrique | AV28: carabine | CB28: 11,15 x 65 R Lancaster | CC28: 11,15 x 65 R Express | CD28: N
A29: 28 | B29: 163 | C29: 6 x 52 R BB2 | D29: 40.83 | E29: 44.4 | F29: 52 | I29: 69 | J29: 1.6 | K29: 12.5 | Q29: 0.3 | R29: 45° | S29: 10.62 | T29: 9.2 | U29: 36° | V29: 54.99 | W29: 0.5 | X29: 0.5 | Y29: 6.88 | Z29: 6.88 | AA29: 6.17 | AC29: 58.67 | AD29: DE | AE29: b | AJ29: 3300 | AK29: 3795 | AL29: 4125 | AM29: 25 | AN29: 2200 | AO29: 6.02 | AP29: 6.17 | AQ29: 1.73 | AR29: 6 | AS29: 254 | AT29: C.I.P. | AU29: metrique | AV29: carabine | CB29: 11,2 x 60 Schueler | CC29: 11,2 x 60 | CD29: N
A30: 29 | B30: 166 | C30: 6 x 70 R | D30: 60 | E30: 60.69 | F30: 70 | I30: 87 | J30: 1.52 | K30: 10.7 | Q30: 0.3 | R30: 45° | S30: 9 | T30: 7.52 | U30: 40°33'54" | V30: 70.17 | W30: 0.5 | X30: 0.5 | Y30: 7.01 | Z30: 7.01 | AA30: 6.17 | AC30: 75.18 | AD30: DE | AE30: b | AJ30: 2600 | AK30: 2990 | AL30: 3250 | AM30: 25 | AN30: 1785 | AO30: 6.02 | AP30: 6.17 | AQ30: 1.73 | AR30: 6 | AS30: 254 | AT30: C.I.P. | AU30: metrique | AV30: carabine | CB30: 11,2 x 72 | CC30: 11,2 x 72 Schueler | CD30: N
A31: 30 | B31: 13 | C31: 6 mm BR Rem. | D31: 27.3 | E31: 31.44 | F31: 39.62 | I31: 55.88 | J31: 1.37 | K31: 12.01 | M31: 3.85 | N31: 10.39 | O31: 1.4 | P31: 36° | Q31: 0.46 | R31: 35° | S31: 11.96 | T31: 11.68 | U31: 60° | V31: 37.42 | W31: 0.64 | X31: 1.27 | Y31: 6.9 | Z31: 6.87 | AA31: 6.18 | AC31: 44.44 | AD31: US | AE31: g | AJ31: 4050 | AK31: 4658 | AL31: 5060 | AM31: 17.5 | AN31: 2525 | AO31: 6.02 | AP31: 6.17 | AQ31: 2.29 | AR31: 6 | AS31: 228.6 | AT31: C.I.P. | AU31: metrique | AV31: carabine | CB31: 11,4 x 53,5 R | CC31: 45-70 Govt.
A32: 31 | B32: 9 | C32: 6 x 47 SM | D32: 34.69 | E32: 38.74 | F32: 47 | I32: 66 | J32: 1.37 | K32: 12.01 | M32: 3.85 | N32: 10.39 | O32: 1.4 | P32: 36° | Q32: 0.45 | R32: 45° | S32: 11.96 | T32: 11.59 | U32: 60°30' | V32: 44.63 | W32: 1.5 | X32: 1.5 | Y32: 6.87 | Z32: 6.87 | AA32: 6.18 | AC32: 52.98 | AD32: CH | AE32: g | AJ32: 3900 | AK32: 4485 | AL32: 4875 | AM32: 25 | AN32: 2730 | AO32: 6.01 | AP32: 6.17 | AQ32: 2.15 | AR32: 6 | AS32: 205 | AT32: C.I.P. | AU32: metrique | AV32: carabine | CB32: 11,4 x 59 R | CC32: 577/450 Sld. Mart.H
C33: 6mm Creedmoor | D33: 37.85 | E33: 41.94 | F33: 48.77 | I33: 71 | J33: 1.37 | K33: 11.99 | M33: 3.84 | N33: 10.39 | O33: 1.4 | P33: 36° | Q33: 0.38 | R33: 35° | S33: 11.95 | T33: 11.73 | U33: 30° | V33: 48.01 | Y33: 7.01 | Z33: 7.01 | AA33: 6.18 | AE33: g | AT33: SAAMI | AU33: pouce | AV33: carabine | CB33: 11,4 x 82 R | CC33: 500/465 N.E.
A34: 32 | B34: 12 | C34: 6mm BR Norma | D34: 27.3 | E34: 31.44 | F34: 39.62 | I34: 62 | J34: 1.37 | K34: 12.01 | M34: 3.85 | N34: 10.39 | O34: 1.4 | P34: 36° | Q34: 0.4 | R34: 45° | S34: 11.96 | T34: 11.68 | U34: 60° | V34: 37.42 | W34: 0.64 | X34: 1.5 | Y34: 6.9 | Z34: 6.87 | AA34: 6.18 | AC34: 45.61 | AD34: SE | AE34: g | AJ34: 4050 | AK34: 4658 | AL34: 5060 | AM34: 17.5 | AN34: 2545 | AO34: 6.02 | AP34: 6.17 | AQ34: 2.29 | AR34: 6 | AS34: 203.2 | AT34: C.I.P. | AU34: metrique | AV34: carabine | CB34: 11,43 x 60 R (61 R) | CC34: 577/450 Sld. Mart.H
A35: 33 | B35: 11 | C35: 6 x 62 Freres | D35: 49.4 | E35: 55.75 | F35: 61.75 | I35: 82 | J35: 1.3 | K35: 12.1 | M35: 3.2 | N35: 10.5 | O35: 1 | P35: 41°37'48" | Q35: 0.3 | R35: 45° | S35: 12.1 | T35: 11.53 | U35: 39°58'51" | V35: 65.25 | W35: 0.5 | X35: 0.5 | Y35: 6.91 | Z35: 6.91 | AA35: 6.18 | AC35: 68.42 | AD35: DE | AE35: g | AJ35: 4300 | AK35: 4945 | AL35: 5375 | AM35: 25 | AN35: 3300 | AO35: 6.02 | AP35: 6.17 | AQ35: 1.73 | AR35: 6 | AS35: 260 | AT35: C.I.P. | AU35: metrique | AV35: carabine | CB35: 11,6 x 82,4 | CC35: 450 N.E. 3‘‘1/4
A36: 34 | B36: 165 | C36: 6 x 62 R Freres | D36: 49.4 | E36: 55.75 | F36: 61.75 | I36: 82 | J36: 1.4 | K36: 13.5 | S36: 12.12 | T36: 11.53 | U36: 39°58'50" | V36: 65.25 | Y36: 6.91 | Z36: 6.91 | AA36: 6.18 | AC36: 68.42 | AD36: DE | AE36: b | AJ36: 4300 | AK36: 4945 | AL36: 5375 | AM36: 25 | AN36: 3435 | AO36: 6.02 | AP36: 6.17 | AQ36: 1.73 | AR36: 6 | AS36: 260 | AT36: C.I.P. | AU36: metrique | AV36: carabine | CB36: 11,7 x 22.0 - R.N. 455 | CC36: 455 Eley
A37: 35 | B37: 17 | C37: 6 XC | D37: 36.85 | E37: 40.81 | F37: 48.3 | I37: 70 | J37: 1.35 | K37: 11.95 | M37: 3.86 | N37: 10.3 | O37: 1.4 | P37: 36° | Q37: 0.4 | R37: 45° | S37: 11.92 | T37: 11.53 | U37: 60° | V37: 46.84 | W37: 1 | X37: 1.5 | Y37: 6.96 | Z37: 6.96 | AA37: 6.18 | AC37: 57.87 | AD37: SE | AE37: g | AJ37: 4400 | AK37: 5060 | AL37: 5500 | AM37: 25 | AN37: 3080 | AO37: 6 | AP37: 6.2 | AQ37: 2.29 | AR37: 4 | AS37: 203.2 | AT37: C.I.P. | AU37: metrique | AV37: carabine | CB37: 11,9 x 82 R | CC37: 470 N.E.
A38: 36 | B38: 16 | C38: 6 mm Rem. | D38: 43.81 | E38: 47.81 | F38: 56.72 | I38: 71.76 | J38: 1.24 | K38: 12.01 | M38: 3.4 | N38: 10.36 | O38: 0.94 | P38: 34° | Q38: 0.38 | R38: 35° | S38: 12.01 | T38: 10.91 | U38: 52° | V38: 55 | W38: 0.64 | X38: 2.54 | Y38: 7.01 | Z38: 7.01 | AA38: 6.18 | AC38: 61.24 | AD38: US | AE38: g | AJ38: 4300 | AK38: 4945 | AL38: 5375 | AM38: 25 | AN38: 3180 | AO38: 6.02 | AP38: 6.17 | AQ38: 2.29 | AR38: 6 | AS38: 228.6 | AT38: C.I.P. | AU38: metrique | AV38: carabine | CB38: 12 x 82,5 R | CC38: 470 N.E.
A39: 37 | B39: 425 | C39: 6 mm T/CU | D39: 37.3 | E39: 38.5 | F39: 44.2 | I39: 63.5 | J39: 1.14 | K39: 9.6 | M39: 3.11 | N39: 8.45 | O39: 0.76 | S39: 9.55 | T39: 8.99 | U39: 080° | Y39: 6.75 | Z39: 6.73 | AA39: 6.17 | AD39: US | AE39: g | AG39: 10 | AH39: 1 | AI39: 24 | AT39: SPEER | CB39: 12 x 89 R | CC39: 475 N° 2 N.E. 3‘‘1/2
A40: 38 | B40: 467 | C40: 6,3 x 57 Farè | D40: 45.75 | E40: 48.35 | F40: 56.26 | I40: 75 | J40: 1.2 | K40: 11.94 | M40: 3.09 | N40: 10.45 | O40: 1 | P40: 40° | Q40: 0.2 | R40: 45° | S40: 11.94 | T40: 11.53 | U40: 80° | V40: 52.61 | W40: 0.76 | X40: 1.17 | Y40: 7.16 | Z40: 7.16 | AA40: 6.52 | AC40: 62.38 | AD40: ITA | AE40: g | AJ40: 4400 | AK40: 5060 | AL40: 5500 | AM40: 25 | AN40: 3300 | AO40: 6.35 | AP40: 6.52 | AQ40: 2.5 | AR40: 6 | AS40: 254 | AT40: C.I.P. | AU40: metrique | AV40: carabine | CB40: 12,7 x 70 Schueler | CC40: 12,5 x 70 Schueler | CD40: N
A41: 39 | B41: 329 | C41: 6,35 Browning | F41: 15.55 | I41: 23 | J41: 1.1 | K41: 7.65 | M41: 2.77 | N41: 6.35 | O41: 0.75 | P41: 20° | Q41: 0.3 | R41: 45° | S41: 7.02 | Z41: 7 | AA41: 6.38 | AC41: 19.07 | AD41: BE | AE41: p /g | AJ41: 1200 | AK41: 1380 | AL41: 1560 | AM41: 9 | AO41: 6.17 | AP41: 6.35 | AQ41: 2.25 | AR41: 6 | AS41: 254 | AT41: C.I.P. | AU41: metrique | AV41: revolvers et pistolets | CB41: 12,7 x 76 R | CC41: 500 N.E. 3‘‘
A42: 40 | B42: 429 | C42: 6,5-06 | D42: 49.48 | E42: 55.28 | F42: 63.35 | I42: 79.35 | J42: 1.24 | K42: 12.01 | M42: 3.16 | N42: 10.39 | O42: 0.84 | Q42: 0.38 | S42: 11.94 | T42: 11.23 | Y42: 7.54 | Z42: 7.52 | AA42: 6.7 | AD42: US | AE42: g | AG42: 3 | AH42: 1 | AI42: 26 | AT42: NET | CB42: 12,7 x 76 R | CC42: 577 N.E. 3‘‘
A43: 41 | B43: 18 | C43: 6,5 - 284 Norma | D43: 44.98 | E43: 48.2 | F43: 55.12 | I43: 82 | J43: 1.37 | K43: 12.01 | M43: 3.78 | N43: 10.39 | O43: 1.02 | P43: 40° | Q43: 0.35 | R43: 45° | S43: 12.72 | T43: 12.06 | U43: 70°14'46" | V43: 53.55 | W43: 0.76 | X43: 3.18 | Y43: 7.53 | Z43: 7.53 | AA43: 6.71 | AC43: 67.34 | AD43: SE | AE43: g | AJ43: 4100 | AK43: 4715 | AL43: 5125 | AM43: 25 | AN43: 3200 | AO43: 6.5 | AP43: 6.71 | AQ43: 2.29 | AR43: 6 | AS43: 228.6 | AT43: C.I.P. | AU43: metrique | AV43: carabine | CB43: 14,5 x 51 R | CC43: 577 Sld. Snider
A44: 42 | B44: 472 | C44: 6,5 x 39 | D44: 30.5 | E44: 32.81 | F44: 39 | I44: 56 | J44: 1.5 | K44: 11.35 | M44: 3.2 | N44: 9.56 | O44: 1 | P44: 52° | Q44: 0.25 | R44: 45° | S44: 11.35 | T44: 10.07 | U44: 60° | V44: 39.22 | W44: 1 | X44: 1.5 | Y44: 7.4 | Z44: 7.4 | AA44: 6.7 | AC44: 46.35 | AD44: RUS | AE44: g | AJ44: 4100 | AK44: 4715 | AL44: 5125 | AM44: 25 | AN44: 2500 | AO44: 6.5 | AP44: 6.7 | AQ44: 2.5 | AR44: 4 | AS44: 250 | AT44: C.I.P. | AU44: metrique | AV44: carabine | CB44: 15,2 x 76 R | CC44: 600 N.E.
A45: 43 | B45: 19 | C45: 6,5 x 47 Lapua | D45: 35.68 | E45: 39.31 | F45: 47 | I45: 71 | J45: 1.37 | K45: 12.01 | M45: 3.85 | N45: 10.39 | O45: 1.4 | P45: 36° | Q45: 0.38 | R45: 45° | S45: 11.95 | T45: 11.59 | U45: 60° | V45: 45.721 | W45: 1 | X45: 1.5 | Y45: 7.4 | Z45: 7.4 | AA45: 6.71 | AC45: 55.7 | AD45: FI | AE45: g | AJ45: 4350 | AK45: 5003 | AL45: 5438 | AM45: 25 | AN45: 3300 | AO45: 6.5 | AP45: 6.7 | AQ45: 2.29 | AR45: 6 | AS45: 200 | AT45: C.I.P. | AU45: metrique | AV45: carabine | CB45: 15,5 x 76 R | CC45: 600 N.E.
A46: 44 | B46: 167 | C46: 6,5 x 50 R | D46: 41.97 | E46: 43.23 | F46: 49.5 | I46: 68 | J46: 1.4 | K46: 10.9 | Q46: 0.3 | R46: 45° | S46: 9.59 | T46: 9.4 | U46: 80°08'44" | V46: 47.56 | Y46: 7.28 | Z46: 7.27 | AA46: 6.7 | AC46: 55.5 | AD46: DE | AE46: b | AJ46: 3650 | AK46: 4198 | AL46: 4563 | AM46: 25 | AN46: 2500 | AO46: 6.45 | AP46: 6.7 | AQ46: 3.6 | AR46: 4 | AS46: 228 | AT46: C.I.P. | AU46: metrique | AV46: carabine | CB46: 17 AMA | CC46: 17 Rem.
A47: 45 | B47: 168 | C47: 6,5 x 51 R (Arisaka) | D47: 38.92 | E47: 43.4 | F47: 51 | I47: 76 | J47: 1.5 | K47: 12.08 | M47: 2.3 | N47: 10.4 | O47: 0.6 | P47: 60° | Q47: 0.3 | R47: 45° | S47: 11.45 | T47: 10.4 | U47: 37° | V47: 54.46 | W47: 0.5 | X47: 0.5 | Y47: 7.4 | Z47: 7.37 | AA47: 6.63 | AC47: 69.5 | AD47: JP | AE47: b | AJ47: 2950 | AK47: 3393 | AL47: 3688 | AM47: 25 | AN47: 2625 | AO47: 6.33 | AP47: 6.63 | AQ47: 3.5 | AR47: 4 | AS47: 200 | AT47: C.I.P. | AU47: metrique | AV47: carabine | CB47: 17 T 216 | CC47: 17 Rem.
A48: 46 | B48: 20 | C48: 6,5 x 52 Carcano | D48: 41.2 | E48: 44.96 | F48: 52.5 | I48: 76.5 | J48: 1.3 | K48: 11.45 | M48: 3.2 | N48: 9.95 | O48: 1.7 | P48: 74°40'48" | Q48: 0.3 | R48: 45° | S48: 11.41 | T48: 10.94 | U48: 48°32' | V48: 53.33 | W48: 3 | X48: 2.25 | Y48: 7.55 | Z48: 7.55 | AA48: 6.8 | AC48: 76.9 | AD48: IT | AE48: g | AJ48: 2850 | AK48: 3278 | AL48: 3560 | AM48: 25 | AN48: 2465 | AO48: 6.5 | AP48: 6.8 | AQ48: 3 | AR48: 4 | AS48: 201.5 | AT48: C.I.P. | AU48: metrique | AV48: carabine | CB48: 17 USA | CC48: 17 Rem.
A49: 47 | B49: 169 | C49: 6,5 x 52 R | D49: 35 | E49: 40 | F49: 52 | I49: 64.5 | J49: 1.6 | K49: 12.6 | Q49: 0.3 | R49: 45° | S49: 10.6 | T49: 9.2 | U49: 22°50'24" | V49: 57.77 | W49: 0.5 | X49: 0.5 | Y49: 7.18 | Z49: 7.18 | AA49: 6.58 | AC49: 68 | AD49: DE | AE49: b | AJ49: 2450 | AK49: 2818 | AL49: 3060 | AM49: 25 | AN49: 1810 | AO49: 6.3 | AP49: 6.55 | AQ49: 3.5 | AR49: 4 | AS49: 260 | AT49: C.I.P. | AU49: metrique | AV49: carabine | CB49: 19,9 x 23,7 -S.&W. 44 | CC49: 44 S&W Russian
A50: 48 | B50: 487 | C50: 6,5 x 52 R K&S | D50: 42.32 | E50: 44.18 | F50: 51.8 | I50: 71.12 | J50: 1.6 | K50: 12.85 | Q50: 0.38 | R50: 35° | S50: 10.72 | T50: 10.42 | U50: 80° | V50: 48.53 | W50: 1 | X50: 1 | Y50: 7.3 | Z50: 7.3 | AA50: 6.72 | AC50: 60.15 | AD50: DE | AE50: b | AJ50: 3250 | AK50: 3738 | AL50: 4063 | AM50: 25 | AN50: 2450 | AO50: 6.45 | AP50: 6.7 | AQ50: 3.5 | AR50: 4 | AS50: 200 | AT50: C.I.P. | AU50: metrique | AV50: carabine | CB50: 22 Center Fire Magnum | CC50: 22 Rem.Jet Mag.
A51: 49 | B51: 428 | C51: 6,5 x 53 R Mannlicher | D51: 41.57 | E51: 45 | F51: 53.59 | I51: 77.47 | J51: 1.25 | K51: 13.4 | Q51: 0.3 | R51: 45° | S51: 11.48 | T51: 10.75 | U51: 50° | Y51: 7.55 | Z51: 7.55 | AA51: 6.7 | AE51: b | AG51: 7 | AH51: 1 | AI51: 26 | AJ51: 2800 | AO51: 6.48 | AP51: 6.78 | AQ51: 0 | AT51: MALFATI | CB51: 22 Experimental | CC51: 222 Rem. Mag.
A52: 50 | B52: 21 | C52: 6,5 x 54 Mauser | D52: 36.5 | E52: 43.05 | F52: 54 | I52: 68 | J52: 1.5 | K52: 11.8 | M52: 3.6 | N52: 10.2 | O52: 1 | P52: 38°30' | Q52: 0.3 | R52: 45° | S52: 11.95 | T52: 11.1 | U52: 29°59'56" | V52: 57.21 | W52: 0.5 | X52: 0.5 | Y52: 7.59 | Z52: 7.59 | AA52: 6.64 | AC52: 68 | AD52: DE | AE52: g | AJ52: 3050 | AK52: 3508 | AL52: 3810 | AM52: 25 | AN52: 2380 | AO52: 6.4 | AP52: 6.64 | AQ52: 3.5 | AR52: 4 | AS52: 200 | AT52: C.I.P. | AU52: metrique | AV52: carabine | CB52: 22 High Power | CC52: 22 Savage
A53: 51 | B53: 22 | C53: 6,5 x 54 Mannl. Sch. | D53: 41.82 | E53: 45.6 | F53: 53.65 | H53: 57.2 | I53: 77.8 | J53: 1.05 | K53: 11.52 | M53: 3.4 | N53: 9.7 | O53: 1 | P53: 33°15' | R53: 45° | S53: 11.47 | T53: 10.87 | U53: 47°17'26" | V53: 54.24 | W53: 0.5 | X53: 0.5 | Y53: 7.56 | Z53: 7.49 | AA53: 6.7 | AB53: 6.7 | AC53: 74.8 | AD53: AT | AE53: g | AJ53: 3650 | AK53: 4198 | AL53: 4560 | AM53: 25 | AN53: 2430 | AO53: 6.48 | AP53: 6.78 | AQ53: 3.5 | AR53: 4 | AS53: 200 | AT53: C.I.P. | AU53: metrique | AV53: carabine | CB53: 22 Jet | CC53: 22 Rem.Jet Mag.
A54: 52 | B54: 23 | C54: 6,5 x 55 SE. | D54: 43.49 | E54: 47.13 | F54: 55 | I54: 80 | J54: 1.5 | K54: 12.2 | M54: 3.25 | N54: 10.5 | O54: 0.9 | P54: 45° | Q54: 0.5 | R54: 45° | S54: 12.2 | T54: 11.04 | U54: 50°35'02" | V54: 55.17 | W54: 3.5 | X54: 3.7 | Y54: 7.6 | Z54: 7.52 | AA54: 6.71 | AC54: 69.1 | AD54: SE | AE54: g | AJ54: 3800 | AK54: 4370 | AL54: 4750 | AM54: 25 | AN54: 3395 | AO54: 6.5 | AP54: 6.73 | AQ54: 2.5 | AR54: 4 | AS54: 220 | AT54: C.I.P. | AU54: metrique | AV54: carabine | CB54: 22 Rem. Centerfire Mag. | CC54: 22 Rem.Jet Mag.
A55: 53 | B55: 473 | C55: 6,5 x 55 T.R.I. | D55: 43.59 | E55: 47.06 | F55: 54.7 | I55: 85 | J55: 1.5 | K55: 12.13 | M55: 3.23 | N55: 10.5 | O55: 0.9 | P55: 45° | Q55: 0.5 | R55: 45° | S55: 12.15 | T55: 11.52 | U55: 60° | V55: 53.56 | X55: 1.52 | Y55: 7.51 | Z55: 7.51 | AA55: 6.7 | AC55: 64.15 | AD55: ITA | AE55: g | AJ55: 3800 | AK55: 4370 | AL55: 4750 | AM55: 25 | AN55: 3400 | AO55: 6.5 | AP55: 6.7 | AQ55: 2.5 | AR55: 4 | AS55: 203.2 | AT55: C.I.P. | AU55: metrique | AV55: carabine | CB55: 22 Rem. Jet | CC55: 22 Rem.Jet Mag.
A56: 54 | B56: 24 | C56: 6,5 x 57 | D56: 44.5 | E56: 49.3 | F56: 56.7 | H56: 59 | I56: 82 | J56: 1.3 | K56: 11.95 | M56: 3.2 | N56: 10.5 | O56: 1 | P56: 37°52'48" | Q56: 0.3 | R56: 45° | S56: 11.9 | T56: 10.94 | U56: 37°50'02" | V56: 60.46 | W56: 0.5 | X56: 0.5 | Y56: 7.65 | Z56: 7.65 | AA56: 6.7 | AB56: 6.7 | AC56: 86.7 | AD56: DE | AE56: g | AJ56: 3900 | AK56: 4485 | AL56: 4875 | AM56: 25 | AN56: 3260 | AO56: 6.45 | AP56: 6.7 | AQ56: 3.5 | AR56: 4 | AS56: 200 | AT56: C.I.P. | AU56: metrique | AV56: carabine | CB56: 22 Savage HP | CC56: 22 Savage
A57: 55 | B57: 170 | C57: 6,5 x 57 R | D57: 44.5 | E57: 49.3 | F57: 56.7 | I57: 82 | J57: 1.4 | K57: 13.32 | Q57: 0.3 | R57: 45° | S57: 11.92 | T57: 10.94 | U57: 37°50'02" | V57: 60.46 | W57: 0.5 | X57: 0.5 | Y57: 7.65 | Z57: 7.65 | AA57: 6.7 | AC57: 86.7 | AD57: DE | AE57: b | AJ57: 3300 | AK57: 3795 | AL57: 4125 | AM57: 25 | AN57: 3055 | AO57: 6.45 | AP57: 6.7 | AQ57: 3.5 | AR57: 4 | AS57: 200 | AT57: C.I.P. | AU57: metrique | AV57: carabine | CB57: 22 Varminter | CC57: 22-250 Rem.
A58: 56 | B58: 171 | C58: 6,5 x 58 R | E58: 47.5 | F58: 58.5 | I58: 78 | J58: 1.15 | K58: 12.75 | Q58: 0.3 | R58: 45° | S58: 11.1 | Y58: 7.57 | Z58: 7.57 | AA58: 6.64 | AC58: 88.5 | AD58: DE | AE58: b | AJ58: 2800 | AK58: 3220 | AL58: 3500 | AM58: 25 | AN58: 2300 | AO58: 6.4 | AP58: 6.64 | AQ58: 3.5 | AR58: 4 | AS58: 200 | AT58: C.I.P. | AU58: metrique | AV58: carabine | CB58: 22 W.C.F. Hornet | CC58: 22 Hornet
A59: 57 | B59: 25 | C59: 6,5 x 58 Mauser | D59: 42.52 | E59: 48.58 | F59: 58 | I59: 82.5 | J59: 1.5 | K59: 11.8 | M59: 3.4 | N59: 10.2 | O59: 1 | P59: 45° | Q59: 0.3 | R59: 45° | S59: 11.95 | T59: 10.95 | U59: 30°01'18" | V59: 62.94 | W59: 0.5 | X59: 0.5 | Y59: 7.7 | Z59: 7.7 | AA59: 6.7 | AC59: 88 | AD59: DE | AE59: g | AJ59: 3550 | AK59: 4083 | AL59: 4440 | AM59: 25 | AN59: 3330 | AO59: 6.45 | AP59: 6.7 | AQ59: 3.5 | AR59: 4 | AS59: 200 | AT59: C.I.P. | AU59: metrique | AV59: carabine | CB59: 22 W.R.A. Hornet | CC59: 22 Hornet
A60: 58 | B60: 27 | C60: 6,5 x 64 | D60: 51.97 | E60: 54.32 | F60: 64 | I60: 84 | J60: 1.3 | K60: 11.95 | M60: 3.2 | N60: 10.5 | O60: 1 | P60: 36°15' | Q60: 0.3 | R60: 45° | S60: 11.82 | T60: 11.6 | U60: 80°05'21" | V60: 58.87 | Y60: 7.65 | Z60: 7.64 | AA60: 6.7 | AC60: 72 | AD60: DE | AE60: g | AJ60: 4300 | AK60: 4945 | AL60: 5375 | AM60: 25 | AN60: 3645 | AO60: 6.45 | AP60: 6.7 | AQ60: 3.6 | AR60: 4 | AS60: 228 | AT60: C.I.P. | AU60: metrique | AV60: carabine | CB60: 22 Winchester Hornet | CC60: 22 Hornet
A61: 59 | B61: 28 | C61: 6,5 x 64 Brenneke | D61: 49.5 | E61: 55.4 | F61: 64.52 | I61: 84.84 | J61: 1.24 | K61: 12.01 | M61: 3.27 | N61: 10.39 | O61: 0.9 | P61: 36° | Q61: 0.91 | R61: 72° | S61: 11.97 | T61: 11.21 | U61: 35°20'54" | V61: 67.09 | W61: 1.02 | X61: 3.18 | Y61: 7.45 | Z61: 7.42 | AA61: 6.7 | AC61: 71.1 | AD61: DE | AE61: g | AJ61: 4300 | AK61: 4945 | AL61: 5190 | AM61: 25 | AN61: 3645 | AO61: 6.45 | AP61: 6.7 | AQ61: 3.5 | AR61: 4 | AS61: 255 | AT61: C.I.P. | AU61: metrique | AV61: carabine | CB61: 22 x 36 HO | CC61: 22 Hornet
A62: 60 | B62: 172 | C62: 6,5 x 65 R RWS | D62: 53.85 | E62: 58.52 | F62: 65 | I62: 85 | J62: 1.5 | K62: 13.5 | S62: 12.08 | T62: 10.97 | U62: 40° | V62: 68.92 | Y62: 7.57 | Z62: 7.57 | AA62: 6.7 | AC62: 74.96 | AD62: DE | AE62: b | AJ62: 3800 | AK62: 4170 | AL62: 4750 | AM62: 25 | AN62: 3675 | AO62: 6.45 | AP62: 6.7 | AQ62: 3.5 | AR62: 4 | AS62: 200 | AT62: C.I.P. | AU62: metrique | AV62: carabine | CB62: 220 Russian | CC62: 5,6 x 39
A63: 61 | B63: 29 | C63: 6,5 x 65 RWS | D63: 53.85 | E63: 58.52 | F63: 65 | I63: 85 | J63: 1.3 | K63: 11.95 | M63: 3.2 | N63: 10.5 | O63: 1 | P63: 40°33' | Q63: 0.3 | R63: 45° | S63: 12.04 | T63: 10.97 | U63: 40°00'02" | V63: 68.92 | Y63: 7.57 | Z63: 7.57 | AA63: 6.7 | AC63: 74.96 | AD63: DE | AE63: g | AJ63: 4150 | AK63: 4773 | AL63: 5190 | AM63: 25 | AN63: 3955 | AO63: 6.45 | AP63: 6.7 | AQ63: 3.5 | AR63: 4 | AS63: 200 | AT63: C.I.P. | AU63: metrique | AV63: carabine | CB63: 220 WOS | CC63: 22-250 Rem.
A64: 62 | B64: 30 | C64: 6,5 x 68 | D64: 51.75 | E64: 60.5 | F64: 67.5 | H64: 67.9 | I64: 86.5 | J64: 1.4 | K64: 13 | M64: 3.5 | N64: 11.2 | O64: 1 | P64: 43°40'12" | Q64: 0.3 | R64: 45° | S64: 13.3 | T64: 12.18 | U64: 29°19'56" | V64: 75.02 | W64: 0.5 | X64: 0.5 | Y64: 7.6 | Z64: 7.6 | AA64: 6.7 | AB64: 6.7 | AC64: 97.5 | AD64: DE | AE64: g | AJ64: 4400 | AK64: 5060 | AL64: 5500 | AM64: 25 | AN64: 4045 | AO64: 6.45 | AP64: 6.7 | AQ64: 3.5 | AR64: 4 | AS64: 250 | AT64: C.I.P. | AU64: metrique | AV64: carabine | CB64: 221 Fireball | CC64: 221 Rem. Fireball
A65: 63 | B65: 173 | C65: 6,5 x 68 R | D65: 51.78 | E65: 60.53 | F65: 67.5 | I65: 87.5 | J65: 1.75 | K65: 15 | Q65: 0.3 | R65: 45° | S65: 13.34 | T65: 12.18 | U65: 29°19'59" | V65: 75.05 | W65: 0.5 | X65: 0.5 | Y65: 7.6 | Z65: 7.6 | AA65: 6.7 | AC65: 97.5 | AD65: DE | AE65: b | AJ65: 3900 | AK65: 4485 | AL65: 4875 | AM65: 25 | AN65: 3810 | AO65: 6.45 | AP65: 6.7 | AQ65: 3.5 | AR65: 4 | AS65: 250 | AT65: C.I.P. | AU65: metrique | AV65: carabine | CB65: 221 Remington | CC65: 221 Rem. Fireball
A66: 64 | B66: 174 | C66: 6,5 x 70 R | E66: 60 | F66: 70 | I66: 90 | J66: 1.52 | K66: 10.7 | Q66: 0.3 | R66: 45° | S66: 9 | Y66: 7.52 | Z66: 7.42 | AA66: 6.64 | AC66: 100 | AD66: DE/AT | AE66: b | AJ66: 2800 | AK66: 3220 | AL66: 3500 | AM66: 25 | AN66: 1730 | AO66: 6.4 | AP66: 6.64 | AQ66: 3.5 | AR66: 4 | AS66: 200 | AT66: C.I.P. | AU66: metrique | AV66: carabine | CB66: 222 Rem. Special | CC66: 223 Rem.
A67: 65 | B67: 469 | C67: 6,5 Grendel | D67: 29.23 | E67: 32.25 | F67: 38.61 | I67: 57.4 | J67: 1.5 | K67: 11.2 | M67: 3.5 | N67: 9.6 | O67: 1.19 | P67: 45,00° | Q67: 0.25 | R67: 55° | S67: 11.22 | T67: 10.92 | U67: 60,00° | V67: 38.68 | W67: 0.76 | X67: 1.27 | Y67: 7.44 | Z67: 7.44 | AA67: 6.71 | AC67: 45.93 | AD67: USA | AE67: g | AJ67: 4050 | AK67: 4658 | AL67: 5063 | AM67: 25 | AN67: 2800 | AO67: 6.5 | AP67: 6.71 | AQ67: 2.29 | AR67: 6 | AS67: 200 | AT67: C.I.P. | AU67: metrique | AV67: carabine | CB67: 223 Armalite | CC67: 223 Rem.
A68: 66 | B68: 426 | C68: 6,5 mm JDJ | D68: 41.4 | E68: 43.43 | F68: 48.26 | I68: 68.58 | J68: 1.24 | K68: 12.01 | S68: 10.76 | T68: 10.39 | U68: 080° | Y68: 7.44 | Z68: 7.37 | AA68: 6.7 | AD68: US | AE68: b | AG68: 11 | AH68: 1 | AI68: 26 | AT68: SPEER | CB68: 223 Rem.Special | CC68: 223 Rem.
A69: 67 | B69: 427 | C69: 6,5 mm T/CU | D69: 36.52 | E69: 37.94 | F69: 44.42 | I69: 63.5 | J69: 1.14 | K69: 9.6 | M69: 3.13 | N69: 8.43 | O69: 0.76 | P69: 25° | Q69: 0.45 | R69: 35° | S69: 9.58 | T69: 9 | Y69: 7.42 | Z69: 7.42 | AA69: 6.72 | AD69: US | AE69: g | AG69: 10 | AI69: 26 | AT69: NET | CB69: 244 Rem. | CC69: 6 mm Rem.
A70: 68 | B70: 470 | C70: 6,5 mm D.B.G. | D70: 38.92 | E70: 44.19 | F70: 51.9 | I70: 72 | J70: 1.27 | K70: 13.56 | M70: 3.75 | N70: 12.07 | O70: 0.94 | P70: 32° | Q70: 0.41 | R70: 35° | S70: 14 | T70: 13.59 | U70: 60°02'18" | V70: 50.68 | Y70: 7.5 | Z70: 7.5 | AA70: 6.71 | AC70: 58.62 | AD70: ITA | AE70: g | AJ70: 4400 | AK70: 5060 | AL70: 5500 | AM70: 25 | AN70: 3800 | AO70: 6.5 | AP70: 6.71 | AQ70: 1.73 | AR70: 6 | AS70: 254 | AT70: C.I.P. | AU70: metrique | AV70: carabine | CB70: 25 - 6,35 mm Auto | CC70: 6,35 Browning
A71: 69 | B71: 26 | C71: 6,5 x 63 Messner Mag. | D71: 51.55 | E71: 55.96 | F71: 63 | I71: 84.5 | J71: 1.3 | K71: 12.63 | M71: 3.2 | N71: 11.2 | O71: 1 | P71: 43° | Q71: 0.3 | R71: 45° | S71: 12.85 | T71: 12.4 | U71: 57°54'38" | V71: 62.76 | W71: 0.67 | X71: 2 | Y71: 7.52 | Z71: 7.52 | AA71: 6.71 | AC71: 89.41 | AD71: FR | AE71: g | AJ71: 4400 | AK71: 5060 | AL71: 5500 | AM71: 25 | AN71: 4200 | AO71: 6.45 | AP71: 6.7 | AQ71: 3.5 | AR71: 4 | AS71: 200 | AT71: C.I.P. | AU71: metrique | AV71: carabine | CB71: 25 ACP | CC71: 6,35 Browning
A72: 70 | B72: 471 | C72: 6,5 mm Lahoz | D72: 33.52 | E72: 37.3 | F72: 42.87 | I72: 57.4 | J72: 1.5 | K72: 11.45 | M72: 3.2 | N72: 9.95 | O72: 1.5 | P72: 74°40'48" | Q72: 0.3 | R72: 45° | S72: 11.41 | T72: 10.94 | U72: 48°18'15" | V72: 45.72 | W72: 3 | X72: 2 | Y72: 7.55 | Z72: 7.55 | AA72: 6.71 | AC72: 48.49 | AD72: FR | AE72: g | AJ72: 3450 | AK72: 3968 | AL72: 4313 | AM72: 25 | AN72: 2010 | AO72: 6.5 | AP72: 6.7 | AQ72: 2.42 | AR72: 6 | AS72: 228.6 | AT72: C.I.P. | AU72: metrique | AV72: carabine | CB72: 25 ASP | CC72: 6,35 Browning
A73: 71 | B73: 468 | C73: 6,5 Creedmoor | D73: 37.84 | E73: 41.52 | F73: 48.77 | I73: 71.76 | J73: 1.37 | K73: 12.01 | M73: 3.84 | N73: 10.39 | O73: 1.4 | P73: 36° | Q73: 0.38 | R73: 35° | S73: 11.95 | T73: 11.74 | U73: 60° | V73: 48.01 | W73: 0.76 | X73: 3.18 | Y73: 7.49 | Z73: 7.49 | AA73: 6.72 | AC73: 58.42 | AD73: USA | AE73: g | AJ73: 4350 | AK73: 5003 | AL73: 5438 | AM73: 25 | AN73: 3400 | AO73: 6.5 | AP73: 6.71 | AQ73: 2.29 | AR73: 6 | AS73: 203 | AT73: C.I.P. | AU73: metrique | AV73: carabine | CB73: 25 Auto | CC73: 6,35 Browning
A74: 72 | B74: 288 | C74: 6,5 mm Rem. Mag. | D74: 43.18 | E74: 48.49 | F74: 55.12 | I74: 71.12 | J74: 1.27 | K74: 13.51 | L74: 13.51 | M74: 5.59 | N74: 12.07 | O74: 0.94 | P74: 35° | Q74: 0.41 | R74: 35° | S74: 13.03 | T74: 12.58 | U74: 50° | V74: 56.67 | W74: 0.76 | X74: 2.54 | Y74: 7.63 | Z74: 7.57 | AA74: 6.72 | AC74: 62.17 | AD74: US | AE74: m | AJ74: 4350 | AK74: 5003 | AL74: 5438 | AM74: 25 | AN74: 3885 | AO74: 6.5 | AP74: 6.71 | AQ74: 2.41 | AR74: 6 | AS74: 229 | AT74: C.I.P. | AU74: metrique | AV74: carabine magnum | CB74: 25 Colt Automatic | CC74: 6,35 Browning
C75: 6.5 PRC | D75: 39.85 | E75: 44.66 | F75: 51.56 | I75: 69.98 | J75: 1.27 | K75: 13.51 | M75: 3.24 | N75: 12.07 | O75: 0.94 | P75: 35° | Q75: 0.41 | R75: 35° | S75: 13.51 | T75: 13.1 | U75: 60° | V75: 51.18 | Y75: 7.54 | Z75: 7.54 | AA75: 6.71 | AE75: g | AT75: SAAMI | AU75: pouce | AV75: carabine | CB75: 25 Niedner | CC75: 25-06 Rem.
C76: 6.5-284 NORMA | D76: 44.98 | E76: 48.2 | F76: 55.12 | I76: 73 | J76: 1.37 | K76: 12.01 | M76: 3.77 | N76: 10.39 | O76: 1.02 | P76: 40° | Q76: 0.35 | R76: 45° | S76: 12.7 | T76: 12.06 | U76: 70°14'46'' | V76: 53.55 | Y76: 7.53 | Z76: 7.53 | AA76: 6.71 | AE76: g | AT76: SAAMI | AU76: pouce | AV76: carabine | CB76: 25/30-06 Springfield | CC76: 25-06 Rem.
C77: 6.5-300 Weatherby Magnum | D77: 58.38 | E77: 64.15 | F77: 71.76 | I77: 91 | J77: 1.3 | K77: 13.5 | L77: 13.5 | M77: 5.56 | N77: 11.61 | O77: 1.24 | P77: 45° | Q77: 0.31 | R77: 45° | S77: 13 | T77: 12.5 | W77: 3.05 | X77: 4.62 | Y77: 7.49 | Z77: 7.49 | AA77: 6.72 | AE77: m | AT77: SAAMI | AU77: pouce | AV77: carabine | CB77: 25/32-20 W.C.F. | CC77: 25-20 Win.
A78: 73 | B78: 31 | C78: 6,8 mm Rem. SPC | D78: 33.05 | E78: 35.91 | F78: 42.84 | I78: 57.4 | J78: 1.24 | K78: 10.72 | M78: 3.2 | N78: 9.09 | O78: 0.84 | P78: 36° | Q78: 0.38 | R78: 35° | S78: 10.72 | T78: 10.2 | U78: 46° | V78: 45.05 | W78: 0.64 | X78: 2.54 | Y78: 7.77 | Z78: 7.77 | AA78: 7.06 | AC78: 48.41 | AD78: US | AE78: g | AJ78: 4050 | AK78: 4658 | AL78: 5063 | AM78: 25 | AN78: 2993 | AO78: 6.86 | AP78: 7.04 | AQ78: 4.06 | AR78: 4 | AS78: 254 | AT78: C.I.P. | AU78: metrique | AV78: carabine | CB78: 250-3000 | CC78: 250 Savage
A79: 74 | B79: 32 | C79: 7 x 33 Sako | D79: 26.68 | E79: 29.1 | F79: 33.33 | I79: 44.44 | J79: 1.27 | K79: 10 | M79: 3.05 | N79: 8.8 | O79: 0.9 | P79: 32°42' | Q79: 0.3 | R79: 45° | S79: 9.93 | T79: 9.52 | U79: 35°56'39" | V79: 41.35 | Y79: 7.95 | Z79: 7.9 | AA79: 7.26 | AC79: 41.4 | AD79: FI | AE79: g | AJ79: 2800 | AK79: 3220 | AL79: 3500 | AM79: 17.5 | AN79: 1715 | AO79: 6.98 | AP79: 7.23 | AQ79: 3.6 | AR79: 4 | AS79: 401 | AT79: C.I.P. | AU79: metrique | AV79: carabine | CB79: 250-3000 Savage | CC79: 250 Savage
A80: 75 | B80: 474 | C80: 7 X 44 Penna | D80: 35 | E80: 38.67 | F80: 44.5 | I80: 60 | J80: 1.14 | K80: 9.6 | M80: 3.13 | N80: 8.43 | O80: 0.76 | P80: 25° | Q80: 0.45 | R80: 35° | S80: 9.58 | T80: 9.03 | U80: 22°02'56" | V80: 58.17 | W80: 0.6 | X80: 2.5 | Y80: 7.6 | Z80: 7.6 | AA80: 7.04 | AC80: 59.66 | AD80: ITA | AE80: g | AJ80: 4400 | AK80: 5060 | AL80: 5500 | AM80: 25 | AN80: 2000 | AO80: 6.86 | AP80: 7.03 | AQ80: 0.85 | AR80: 6 | AS80: 254 | AT80: C.I.P. | AU80: metrique | AV80: carabine | CB80: 25-06 | CC80: 25-06 Rem.
A81: 76 | B81: 330 | C81: 7 x 49 GJW | D81: 42.32 | E81: 43.23 | F81: 49 | I81: 73.5 | J81: 1.14 | K81: 9.6 | M81: 3.1 | N81: 8.44 | O81: 0.8 | P81: 25°22'18" | Q81: 0.5 | R81: 45° | S81: 9.54 | T81: 9.3 | U81: 80°06'18" | V81: 47.85 | Y81: 7.77 | Z81: 7.77 | AA81: 7.25 | AC81: 61.09 | AD81: DE | AE81: p /g | AJ81: 4700 | AK81: 5405 | AL81: 6110 | AM81: 25 | AO81: 6.96 | AP81: 7.2 | AQ81: 3.7 | AR81: 4 | AS81: 228 | AT81: C.I.P. | AU81: metrique | AV81: revolvers et pistolets | CB81: 25-06 (.25 Niedner) | CC81: 25-06 Rem.
A82: 77 | B82: 176 | C82: 7 x 50 R | D82: 41.97 | E82: 42.9 | F82: 49.5 | I82: 68 | J82: 1.4 | K82: 10.9 | Q82: 0.3 | R82: 45° | S82: 9.59 | T82: 9.4 | U82: 80°20'05" | V82: 47.54 | Y82: 7.83 | Z82: 7.82 | AA82: 7.25 | AC82: 56 | AD82: DE | AE82: b | AJ82: 3650 | AK82: 4198 | AL82: 4560 | AM82: 25 | AN82: 2940 | AO82: 6.98 | AP82: 7.24 | AQ82: 4.1 | AR82: 4 | AS82: 228 | AT82: C.I.P. | AU82: metrique | AV82: carabine | CB82: 250-Hi Power | CC82: 250 Savage
A83: 78 | B83: 177 | C83: 7 x 57 R | D83: 43.8 | E83: 47.37 | F83: 57 | I83: 78 | J83: 1.6 | K83: 13.5 | Q83: 0.3 | R83: 45° | S83: 12.05 | T83: 10.92 | U83: 41°00'24" | V83: 58.4 | W83: 0.5 | X83: 0.5 | Y83: 8.25 | Z83: 8.25 | AA83: 7.25 | AC83: 76.69 | AD83: DE | AE83: b | AJ83: 3400 | AK83: 3910 | AL83: 4250 | AM83: 25 | AN83: 3390 | AO83: 6.98 | AP83: 7.24 | AQ83: 3.7 | AR83: 4 | AS83: 228 | AT83: C.I.P. | AU83: metrique | AV83: carabine | CB83: 25-20 W.C.F. | CC83: 25-20 Win.
A84: 79 | B84: 33 | C84: 7 x 57 | D84: 43.84 | E84: 47.41 | F84: 57 | I84: 78 | J84: 1.15 | K84: 12.1 | M84: 3.04 | N84: 10.7 | O84: 0.84 | P84: 32° | Q84: 0.3 | R84: 45° | S84: 12.01 | T84: 10.92 | U84: 40°54'05" | V84: 58.48 | W84: 0.5 | X84: 0.5 | Y84: 8.25 | Z84: 8.25 | AA84: 7.25 | AC84: 76.2 | AD84: DE | AE84: g | AJ84: 3900 | AK84: 4485 | AL84: 4875 | AM84: 25 | AN84: 3450 | AO84: 6.98 | AP84: 7.24 | AQ84: 3.9 | AR84: 4 | AS84: 220 | AT84: C.I.P. | AU84: metrique | AV84: carabine | CB84: 256 Ball | CC84: 6,5 x 51 R (Arisaka)
A85: 80 | B85: 34 | C85: 7 x 64 | D85: 51.5 | E85: 55.37 | F85: 64 | G85: 70.4 | I85: 84 | J85: 1.3 | K85: 11.95 | M85: 3.2 | N85: 10.5 | O85: 1 | P85: 36°52'12" | Q85: 0.3 | R85: 45° | S85: 11.85 | T85: 10.8 | U85: 40°25'44" | V85: 66.17 | W85: 0.5 | X85: 0.5 | Y85: 7.95 | Z85: 7.95 | AA85: 7.25 | AB85: 7.25 | AC85: 98 | AD85: DE | AE85: g | AJ85: 4150 | AK85: 4773 | AL85: 5190 | AM85: 25 | AN85: 4270 | AO85: 6.98 | AP85: 7.24 | AQ85: 3.7 | AR85: 4 | AS85: 220 | AT85: C.I.P. | AU85: metrique | AV85: carabine | CB85: 256 Jap. Arisaka | CC85: 6,5 x 51 R (Arisaka)
A86: 81 | B86: 179 | C86: 7 x 65 R | D86: 51.5 | E86: 55.36 | F86: 65 | I86: 83.6 | J86: 1.4 | K86: 13.32 | Q86: 0.3 | R86: 45° | S86: 11.89 | T86: 10.8 | U86: 40°31'32" | V86: 66.13 | W86: 0.5 | X86: 0.5 | Y86: 7.95 | Z86: 7.95 | AA86: 7.25 | AC86: 98 | AD86: DE | AE86: b | AJ86: 3800 | AK86: 4370 | AL86: 4750 | AM86: 25 | AN86: 4170 | AO86: 6.98 | AP86: 7.24 | AQ86: 3.7 | AR86: 4 | AS86: 220 | AT86: C.I.P. | AU86: metrique | AV86: carabine | CB86: 256 Krag-Jörgensen | CC86: 6,5 x 55 SE.
A87: 82 | B87: 180 | C87: 7 x 67 R Luyven | D87: 53.53 | E87: 60.05 | F87: 66.7 | I87: 90 | J87: 1.6 | K87: 13.49 | S87: 12.27 | T87: 11.47 | U87: 27°49'24" | V87: 76.68 | Y87: 8.24 | Z87: 8.24 | AA87: 7.25 | AC87: 86.38 | AD87: DE | AE87: b | AJ87: 3800 | AK87: 4370 | AL87: 4750 | AM87: 25 | AN87: 3800 | AO87: 6.98 | AP87: 7.24 | AQ87: 3.7 | AR87: 4 | AS87: 228 | AT87: C.I.P. | AU87: metrique | AV87: carabine | CB87: 256 Mannlicher | CC87: 6,5 x 53 R Mannlicher
A88: 83 | B88: 289 | C88: 7 x 61 Super | D88: 50.8 | E88: 52.85 | F88: 61 | G88: 64.5 | I88: 83 | J88: 1.3 | K88: 13.5 | L88: 13.5 | M88: 5.6 | N88: 12.2 | O88: 1.1 | P88: 35° | Q88: 0.41 | R88: 35° | S88: 13.05 | T88: 11.91 | U88: 85°45' | V88: 57.21 | W88: 2 | X88: 1.5 | Y88: 8.1 | Z88: 8.06 | AA88: 7.2 | AB88: 7.2 | AC88: 88 | AD88: SE | AE88: m | AJ88: 4050 | AK88: 4658 | AL88: 5060 | AM88: 25 | AN88: 4620 | AO88: 7 | AP88: 7.22 | AQ88: 2.7 | AR88: 6 | AS88: 229 | AT88: C.I.P. | AU88: metrique | AV88: carabine magnum | CB88: 256 Mannlicher Rim. | CC88: 6,5 x 53 R Mannlicher
A89: 84 | B89: 181 | C89: 7 x 72 R | D89: 52 | E89: 60 | F89: 72 | I89: 92 | J89: 1.3 | K89: 12.35 | Q89: 0.3 | R89: 45° | S89: 10.85 | T89: 8.6 | U89: 4°39'10" | V89: 157.85 | Y89: 7.95 | Z89: 7.92 | AA89: 7.25 | AC89: 91.2 | AD89: DE | AE89: b | AJ89: 2800 | AK89: 3220 | AL89: 3500 | AM89: 25 | AN89: 2890 | AO89: 6.98 | AP89: 7.24 | AQ89: 3.9 | AR89: 4 | AS89: 220 | AT89: C.I.P. | AU89: metrique | AV89: carabine | CB89: 256 Mannlicher Schönauer | CC89: 6,5 x 54 Mannl. Sch.
A90: 85 | B90: 182 | C90: 7 x 75 R SE v. H. | D90: 59 | E90: 66.8 | F90: 75 | I90: 97 | J90: 1.4 | K90: 13.35 | Q90: 0.3 | R90: 45° | S90: 11.9 | T90: 10.7 | U90: 19°59'42" | V90: 89.35 | W90: 0.5 | X90: 0.5 | Y90: 7.95 | Z90: 7.95 | AA90: 7.24 | AC90: 94 | AD90: DE | AE90: b | AJ90: 4150 | AK90: 4773 | AL90: 5190 | AM90: 25 | AN90: 4830 | AO90: 6.98 | AP90: 7.24 | AQ90: 3.7 | AR90: 4 | AS90: 240 | AT90: C.I.P. | AU90: metrique | AV90: carabine | CB90: 256 Winchester | CC90: 256 Win. Mag.
A91: 86 | B91: 175 | C91: 7-30 Waters | D91: 40.29 | E91: 44.02 | F91: 51.82 | I91: 64.77 | J91: 1.6 | K91: 12.85 | Q91: 0.38 | R91: 35° | S91: 10.71 | T91: 10.14 | U91: 34°24' | V91: 56.67 | W91: 4.57 | X91: 6.35 | Y91: 7.83 | Z91: 7.78 | AA91: 7.23 | AC91: 58.73 | AD91: US | AE91: b | AJ91: 3400 | AK91: 3910 | AL91: 4250 | AM91: 25 | AN91: 2760 | AO91: 7.04 | AP91: 7.21 | AQ91: 2.79 | AR91: 6 | AS91: 241.3 | AT91: C.I.P. | AU91: metrique | AV91: carabine | CB91: 275 HV Rigby | CC91: 7 x 57
A92: 87 | B92: 475 | C92: 7-47 GS | D92: 35.68 | E92: 38.9 | F92: 47 | I92: 71 | J92: 1.37 | K92: 12.01 | M92: 3.84 | N92: 10.39 | O92: 1.4 | P92: 36° | Q92: 0.38 | R92: 45° | S92: 11.95 | T92: 11.59 | U92: 61°21' | V92: 45.45 | W92: 1 | X92: 1.5 | Y92: 7.77 | Z92: 7.77 | AA92: 7.06 | AC92: 52.57 | AD92: ITA | AE92: g | AJ92: 4350 | AK92: 5003 | AL92: 5438 | AM92: 25 | AN92: 3600 | AO92: 6.86 | AP92: 7.04 | AQ92: 4.06 | AR92: 4 | AS92: 280 | AT92: C.I.P. | AU92: metrique | AV92: carabine | CB92: 275 Rigby | CC92: 7 x 57
A93: 88 | B93: 35 | C93: 7 mm - 08 Rem. | D93: 39.62 | E93: 44.47 | F93: 51.69 | I93: 71.12 | J93: 1.37 | K93: 12.01 | M93: 3.85 | N93: 10.39 | O93: 1.4 | P93: 36° | Q93: 0.38 | R93: 35° | S93: 11.96 | T93: 11.53 | U93: 40° | V93: 55.46 | W93: 0.76 | X93: 3.18 | Y93: 8 | Z93: 8 | AA93: 7.23 | AC93: 56.93 | AD93: US | AE93: g | AJ93: 4150 | AK93: 4773 | AL93: 5190 | AM93: 25 | AN93: 3720 | AO93: 7.04 | AP93: 7.21 | AQ93: 2.79 | AR93: 6 | AS93: 241 | AT93: C.I.P. | AU93: metrique | AV93: carabine | CB93: 275 Rigby Mauser | CC93: 7 x 57
A94: 89 | B94: 431 | C94: 7 mm International Rimmed | D94: 37.67 | E94: 39.12 | F94: 51.79 | I94: 71 | J94: 1.6 | K94: 12.85 | M94: 1.6 | N94: 0 | O94: 0 | Q94: 0.38 | R94: 35° | S94: 10.71 | T94: 10.21 | U94: 076° | Y94: 7.9 | Z94: 7.87 | AA94: 7.21 | AD94: US | AE94: b | AG94: 2 | AH94: 2 | AI94: 28 | AT94: NET | CB94: 275 Rimless | CC94: 7 x 57
A95: 90 | B95: 430 | C95: 7 mm IHMSA | D95: 34.8 | E95: 38.51 | F95: 47.4 | I95: 69.85 | J95: 1.24 | K95: 12.01 | M95: 3.18 | N95: 10.39 | O95: 0.84 | Q95: 0.38 | R95: 35° | S95: 11.96 | T95: 11.38 | U95: 076° | Y95: 7.94 | Z95: 7.91 | AA95: 7.21 | AD95: US | AE95: g | AG95: 3 | AH95: 1 | AI95: 28 | AT95: NET | CB95: 276 Brenneke | CC95: 7 x 64
A96: 91 | B96: 332 | C96: 7 mm Penna | F96: 23 | G96: 25 | I96: 34.5 | J96: 1.2 | K96: 7.95 | M96: 2.92 | N96: 6.8 | O96: 1.15 | P96: 45° | Q96: 0.1 | R96: 45° | S96: 7.95 | Z96: 7.9 | AA96: 7.04 | AB96: 7.04 | AC96: 27.25 | AD96: IT | AE96: p /g | AJ96: 2500 | AK96: 2875 | AL96: 3250 | AM96: 12.5 | AO96: 6.86 | AP96: 7.03 | AQ96: 0.85 | AR96: 6 | AS96: 254 | AT96: C.I.P. | AU96: metrique | AV96: revolvers et pistolets | CB96: 276 Mauser | CC96: 7 x 57
A97: 92 | B97: 178 | C97: 7 mm Penna L | F97: 28 | G97: 30 | I97: 41 | J97: 1.2 | K97: 7.95 | M97: 2.92 | N97: 6.8 | O97: 1.15 | P97: 45° | Q97: 0.1 | R97: 45° | S97: 7.95 | Z97: 7.9 | AA97: 7.04 | AB97: 7.04 | AC97: 32.25 | AD97: IT | AE97: p /g | AJ97: 2750 | AK97: 3163 | AL97: 3575 | AM97: 12.5 | AO97: 6.86 | AP97: 7.03 | AQ97: 0.85 | AR97: 6 | AS97: 354 | AT97: C.I.P. | AU97: metrique | AV97: revolvers et pistolets | CB97: 295-10-80 | CC97: 300/295 Rook Rifle
A98: 93 | B98: 292 | C98: 7 mm Mag. FI. H&H | D98: 49.53 | E98: 54.61 | F98: 63.5 | I98: 82.8 | J98: 1.09 | K98: 12.95 | S98: 11.68 | T98: 10.29 | U98: 24°31'59" | V98: 73.19 | Y98: 8.08 | Z98: 8.08 | AA98: 7.21 | AC98: 69.04 | AD98: GB | AE98: b | AJ98: 3300 | AK98: 3795 | AL98: 4125 | AM98: 25 | AN98: 3150 | AO98: 6.96 | AP98: 7.2 | AS98: 220 | AT98: C.I.P. | AU98: metrique | AV98: carabine | CB98: 297/20 Long | CC98: 297/230 Morris lg
A99: 94 | B99: 36 | C99: 7 mm Weath. Mag. | D99: 52.55 | E99: 54.66 | F99: 64.74 | I99: 85.34 | J99: 1.3 | K99: 13.5 | L99: 13.5 | M99: 5.56 | N99: 11.61 | O99: 1.24 | P99: 45° | Q99: 0.3 | R99: 45° | S99: 13 | T99: 12.49 | U99: 94°17'36" | V99: 58.34 | W99: 3.3 | X99: 3.84 | Y99: 7.92 | Z99: 7.92 | AA99: 7.22 | AC99: 79.78 | AD99: US | AE99: m | AJ99: 4400 | AK99: 5060 | AL99: 5500 | AM99: 25 | AN99: 5040 | AO99: 7.02 | AP99: 7.21 | AQ99: 2.87 | AR99: 6 | AS99: 254 | AT99: C.I.P. | AU99: metrique | AV99: carabine magnum | CB99: 297/230 Morris lg | CC99: 297/230 Morris lg
A100: 95 | B100: 489 | C100: 7 mm Blaser Mag. | D100: 47.24 | E100: 51.65 | F100: 59.7 | I100: 80 | J100: 1.37 | K100: 13.59 | M100: 3.61 | N100: 12.19 | O100: 1.42 | P100: 45° | Q100: 0.3 | R100: 35° | S100: 13.84 | T100: 13.09 | U100: 60° | V100: 58.58 | W100: 1.5 | X100: 2 | Y100: 8 | Z100: 8 | AA100: 7.22 | AC100: 68.96 | AD100: SE | AE100: g | AJ100: 4200 | AK100: 4830 | AL100: 5250 | AM100: 25 | AN100: 4585 | AO100: 7.04 | AP100: 7.21 | AQ100: 4.06 | AR100: 4 | AS100: 254 | AT100: C.I.P. | AU100: metrique | AV100: carabine | CB100: 297/230 Morris Short | CC100: 297/230 Morris sh
A101: 96 | B101: 37 | C101: 7 mm Rosè | D101: 55.78 | E101: 60.52 | F101: 66.55 | I101: 83.57 | J101: 1.27 | K101: 13.51 | L101: 13.51 | M101: 5.59 | N101: 12.07 | O101: 0.94 | P101: 35° | Q101: 0.41 | R101: 35° | S101: 13.03 | T101: 12.42 | U101: 50° | V101: 69.1 | W101: 1.02 | X101: 2.54 | Y101: 8 | Z101: 8 | AA101: 7.22 | AB101: 68.61 | AC101: 72.56 | AD101: ITA | AE101: m | AJ101: 4300 | AK101: 4945 | AL101: 5375 | AM101: 25 | AN101: 5000 | AO101: 7.04 | AP101: 7.21 | AQ101: 2.79 | AR101: 6 | AS101: 241 | AT101: C.I.P. | AU101: metrique | AV101: carabine | CB101: 297/230 Short | CC101: 297/230 Morris sh
A102: 97 | B102: 38 | C102: 7 mm BR Rem. | D102: 27.3 | E102: 30.61 | F102: 38.61 | I102: 54.42 | J102: 1.37 | K102: 12.01 | M102: 3.85 | N102: 10.39 | O102: 1.4 | P102: 36° | Q102: 0.46 | R102: 35° | S102: 11.96 | T102: 11.68 | U102: 60° | V102: 37.42 | W102: 0.64 | X102: 1.27 | Y102: 7.86 | Z102: 7.84 | AA102: 7.23 | AC102: 43.62 | AD102: US | AE102: g | AJ102: 4050 | AK102: 4658 | AL102: 5060 | AM102: 17.5 | AN102: 3150 | AO102: 7.04 | AP102: 7.21 | AQ102: 2.79 | AR102: 6 | AS102: 241.3 | AT102: C.I.P. | AU102: metrique | AV102: carabine | CB102: 297/230-3-38 Morris | CC102: 297/230 Morris sh
A103: 98 | B103: 290 | C103: 7 mm Exp. Rem. | D103: 50.78 | E103: 55.87 | F103: 64.52 | I103: 84.58 | J103: 1.24 | K103: 12.01 | M103: 3.17 | N103: 10.39 | O103: 0.84 | P103: 36° | Q103: 0.38 | R103: 35° | S103: 11.97 | T103: 11.21 | U103: 35° | V103: 68.56 | W103: 0.64 | X103: 2.54 | Y103: 8 | Z103: 8 | AA103: 7.23 | AC103: 69.27 | AD103: US | AE103: g | AJ103: 4050 | AK103: 4658 | AL103: 5060 | AM103: 25 | AN103: 3930 | AO103: 7.04 | AP103: 7.21 | AQ103: 2.79 | AR103: 6 | AS103: 241 | AT103: C.I.P. | AU103: metrique | AV103: carabine | CB103: 297/230-5-38 Morris | CC103: 297/230 Morris lg
A104: 99 | B104: 291 | C104: 7 mm Rem. Mag. | D104: 51.82 | E104: 56.61 | F104: 63.5 | I104: 83.57 | J104: 1.27 | K104: 13.51 | L104: 13.51 | M104: 5.59 | N104: 12.07 | O104: 0.94 | P104: 35° | Q104: 0.41 | R104: 35° | S104: 13.03 | T104: 12.47 | U104: 50° | V104: 65.19 | W104: 1.02 | X104: 3.18 | Y104: 8 | Z104: 8 | AA104: 7.23 | AB104: 68.61 | AC104: 68.61 | AD104: US | AE104: m | AJ104: 4300 | AK104: 4945 | AL104: 5375 | AM104: 25 | AN104: 4515 | AO104: 7.04 | AP104: 7.21 | AQ104: 2.79 | AR104: 6 | AS104: 241 | AT104: C.I.P. | AU104: metrique | AV104: carabine magnum | CB104: 30 (7,63) Mauser | CC104: 7,63 Mauser
A105: 100 | B105: 432 | C105: 7 mm STW | D105: 60.69 | E105: 65.32 | F105: 72.39 | I105: 92.71 | J105: 1.27 | K105: 13.51 | L105: 13.51 | M105: 5.58 | N105: 12.07 | O105: 0.94 | P105: 35° | Q105: 0.41 | R105: 35° | S105: 13.03 | T105: 12.37 | U105: 50° | V105: 73.95 | W105: 1.02 | X105: 3.18 | Y105: 8.05 | Z105: 8.05 | AA105: 7.23 | AC105: 80.01 | AD105: US | AE105: m | AJ105: 4400 | AK105: 5060 | AL105: 5500 | AM105: 25 | AN105: 5250 | AO105: 7.02 | AP105: 7.21 | AQ105: 2.87 | AR105: 6 | AS105: 241 | AT105: C.I.P. | AU105: metrique | AV105: carabine magnum | CB105: 30 Automatic (M & B) | CC105: 7,63 Mauser
A106: 101 | B106: 39 | C106: 7 mm T/CU | D106: 36.83 | E106: 38.27 | F106: 44.7 | I106: 67.94 | J106: 1.14 | K106: 9.6 | M106: 3.13 | N106: 8.43 | O106: 0.76 | Q106: 0.45 | R106: 35° | S106: 9.58 | T106: 9.37 | Y106: 7.87 | Z106: 7.87 | AA106: 7.21 | AD106: US | AE106: g | AG106: 10 | AH106: 0 | AI106: 28 | AT106: NET | CB106: 30 Browning | CC106: 30-06 Spring.
A107: 102 | B107: 40 | C107: 7 mm KM | D107: 54.9 | E107: 60.72 | F107: 69.2 | I107: 93.5 | J107: 1.52 | K107: 14.93 | M107: 3.12 | N107: 13.24 | O107: 0.9 | P107: 50° | Q107: 0.5 | R107: 45° | S107: 14.91 | T107: 13.82 | U107: 52°01'19" | V107: 69.05 | X107: 2 | Y107: 8.14 | Z107: 8.12 | AA107: 7.23 | AC107: 76.32 | AD107: DE | AE107: g | AJ107: 4400 | AK107: 5060 | AL107: 5500 | AM107: 25 | AN107: 5670 | AO107: 7.04 | AP107: 7.21 | AQ107: 2.79 | AR107: 6 | AS107: 216 | AT107: C.I.P. | AU107: metrique | AV107: carabine | CB107: 30 Browning | CC107: 7,65 Browning
A108: 103 | B108: 43 | C108: 7 mm Rem. SA Ultra Mag. | D108: 39.07 | E108: 43.79 | F108: 51.69 | I108: 71.76 | J108: 1.27 | K108: 13.56 | M108: 3.75 | N108: 12.07 | O108: 0.94 | P108: 32° | Q108: 0.41 | R108: 35° | S108: 14 | T108: 13.58 | U108: 60° | V108: 50.83 | X108: 3.18 | Y108: 8.13 | Z108: 8.13 | AA108: 7.23 | AB108: 7.04 | AC108: 59.88 | AD108: US | AE108: g | AJ108: 4400 | AK108: 5060 | AL108: 5500 | AM108: 25 | AN108: 4500 | AO108: 7.04 | AP108: 7.21 | AQ108: 2.79 | AR108: 6 | AS108: 254 | AT108: C.I.P. | AU108: metrique | AV108: carabine | CB108: 30 Cal. T 65 | CC108: 308 Win.
A109: 104 | B109: 41 | C109: 7 mm Win. Short Mag. | D109: 43.23 | E109: 47.16 | F109: 53.34 | I109: 72.64 | J109: 1.37 | K109: 13.59 | M109: 3.35 | N109: 12.19 | O109: 1.02 | P109: 45° | Q109: 0.36 | R109: 35° | S109: 14.12 | T109: 13.66 | U109: 70° | V109: 52.98 | W109: 1.27 | X109: 2.54 | Y109: 8.15 | Z109: 8.15 | AA109: 7.23 | AC109: 58.56 | AD109: US | AE109: g | AJ109: 4400 | AK109: 5060 | AL109: 5500 | AM109: 25 | AN109: 4830 | AO109: 7.04 | AP109: 7.21 | AQ109: 2.79 | AR109: 6 | AS109: 241 | AT109: C.I.P. | AU109: metrique | AV109: carabine | CB109: 30 Carbine M1 | CC109: 30 Carbine
A110: 105 | B110: 42 | C110: 7 mm Rem. Ultra Mag. | D110: 60.64 | E110: 65.1 | F110: 72.39 | I110: 91.44 | J110: 1.27 | K110: 13.56 | M110: 3.75 | N110: 12.07 | O110: 0.94 | P110: 32° | Q110: 0.41 | R110: 35° | S110: 13.99 | T110: 13.33 | U110: 60° | V110: 72.18 | W110: 0.76 | X110: 3.18 | Y110: 8.18 | Z110: 8.18 | AA110: 7.23 | AC110: 88.2 | AD110: US | AE110: g | AJ110: 4400 | AK110: 5060 | AL110: 5500 | AM110: 25 | AN110: 5250 | AO110: 7.04 | AP110: 7.21 | AQ110: 2.79 | AR110: 6 | AS110: 241.3 | AT110: C.I.P. | AU110: metrique | AV110: carabine | CB110: 30 Krag-Jörgensen | CC110: 30-40 Krag
A111: 106 | B111: 331 | C111: 7 mm SE v. H. | D111: 53.6 | E111: 57.52 | F111: 66 | I111: 84 | J111: 1.3 | K111: 13 | M111: 3.7 | N111: 11.5 | O111: 1 | P111: 40° | Q111: 0.3 | R111: 45° | S111: 13.85 | T111: 12.7 | U111: 60°02'21" | V111: 64.59 | W111: 0.5 | X111: 0.5 | Y111: 8.17 | Z111: 8.17 | AA111: 7.24 | AC111: 81 | AD111: DE | AE111: g | AJ111: 4400 | AK111: 5060 | AL111: 5500 | AM111: 25 | AN111: 4525 | AO111: 6.98 | AP111: 7.24 | AQ111: 4 | AR111: 4 | AS111: 260 | AT111: C.I.P. | AU111: metrique | AV111: carabine | CB111: 30 Light Rifle | CC111: 300 Savage
A112: 107 | B112: 44 | C112: 7,21 Firebird | D112: 58.7 | E112: 63.91 | F112: 71.37 | I112: 92.2 | J112: 1.65 | K112: 14.76 | M112: 3.99 | N112: 12.95 | O112: 1.4 | P112: 45° | Q112: 0.64 | R112: 45° | S112: 14.73 | T112: 14.22 | U112: 60°01'59" | V112: 71.01 | W112: 1.57 | X112: 3.18 | Y112: 8.2 | Z112: 8.15 | AA112: 7.24 | AC112: 76.46 | AD112: FI | AE112: g | AJ112: 4400 | AK112: 5060 | AL112: 5500 | AM112: 25 | AN112: 6375 | AO112: 7.04 | AP112: 7.21 | AQ112: 4.06 | AR112: 4 | AS112: 254 | AT112: C.I.P. | AU112: metrique | AV112: carabine | CB112: 30 Luger | CC112: 7,65 Parabellum
A113: 108 | B113: 433 | C113: 7,35 x 51 Carcano | D113: 41.58 | E113: 43.1 | F113: 51.5 | I113: 73.5 | J113: 1.3 | K113: 11.4 | M113: 3.2 | N113: 9.95 | O113: 1.7 | P113: 74°40'48" | Q113: 0.3 | R113: 45° | S113: 11.1 | T113: 10.85 | U113: 48°60' | Y113: 8.32 | Z113: 8.32 | AA113: 7.57 | AD113: IT | AG113: 9 | AH113: 1 | AJ113: 3300 | AO113: 7.35 | AP113: 7.57 | AT113: MALFATI | CB113: 30 M1 Carbine | CC113: 30 Carbine
A114: 109 | B114: 46 | C114: 7,5 x 55 Suisse | D114: 44.58 | E114: 47.08 | F114: 55.6 | I114: 77.7 | J114: 1.65 | K114: 12.65 | M114: 3.46 | N114: 10.3 | O114: 0.89 | P114: 51°49'16" | Q114: 0.5 | R114: 45° | S114: 12.64 | T114: 11.63 | U114: 61° | V114: 54.45 | W114: 2 | X114: 2 | Y114: 8.68 | Z114: 8.58 | AA114: 7.78 | AC114: 62.47 | AD114: CH | AE114: g | AJ114: 3800 | AK114: 4370 | AL114: 4750 | AM114: 25 | AN114: 3965 | AO114: 7.51 | AP114: 7.77 | AQ114: 3.75 | AR114: 4 | AS114: 270 | AT114: C.I.P. | AU114: metrique | AV114: carabine | CB114: 30 Mauser Automatic | CC114: 7,63 Mauser
A115: 110 | B115: 45 | C115: 7,5 x 54 MAS | D115: 42.79 | E115: 46.42 | F115: 54 | I115: 76 | J115: 1.4 | K115: 12.34 | M115: 3.2 | N115: 10.5 | O115: 0.8 | P115: 41°11'9" | Q115: 0.3 | R115: 45° | S115: 12.25 | T115: 11.3 | U115: 40° | V115: 58.33 | W115: 2 | X115: 3.2 | Y115: 8.66 | Z115: 8.62 | AA115: 7.84 | AC115: 67.58 | AD115: FR | AE115: g | AJ115: 3800 | AK115: 4370 | AL115: 4750 | AM115: 25 | AN115: 3575 | AO115: 7.57 | AP115: 7.85 | AQ115: 3.7 | AR115: 4 | AS115: 270 | AT115: C.I.P. | AU115: metrique | AV115: carabine | CB115: 30 Nato | CC115: 308 Win.
A116: 111 | B116: 492 | C116: 7,5 FK | D116: 21.01 | E116: 23 | F116: 27 | I116: 35 | J116: 1.4 | K116: 10.8 | M116: 3.65 | N116: 8.6 | O116: 1.15 | P116: 45° | Q116: 0.5 | R116: 45° | S116: 10.8 | T116: 10.75 | U116: 60° | V116: 30.31 | W116: 0.5 | X116: 2 | Y116: 8.45 | Z116: 8.45 | AA116: 7.8 | AC116: 33.57 | AD116: CZE | AE116: p /g | AJ116: 3500 | AK116: 4025 | AL116: 4550 | AM116: 17.5 | AO116: 7.51 | AP116: 7.77 | AQ116: 3.75 | AR116: 4 | AS116: 270 | AT116: C.I.P. | AU116: metrique | AV116: revolvers et pistolets | CB116: 30 Springfield | CC116: 30-06 Spring.
A117: 112 | B117: 333 | C117: 7,5 Ord. Suisse | F117: 22.8 | I117: 34.6 | J117: 1.5 | K117: 10.4 | Q117: 0.5 | R117: 45° | S117: 9 | Z117: 8.4 | AA117: 8 | AC117: 25.88 | AD117: CH | AE117: p /b | AJ117: 1850 | AK117: 2128 | AL117: 2405 | AM117: 12.5 | AO117: 7.65 | AP117: 8 | AQ117: 2.4 | AR117: 4 | AS117: 350 | AT117: C.I.P. | AU117: metrique | AV117: revolvers et pistolets | CB117: 30 US Gov't | CC117: 30-40 Krag
A118: 113 | B118: 334 | C118: 7,62 x 25 Tokarev | D118: 19.6 | E118: 21.04 | F118: 25 | I118: 35.2 | J118: 1.32 | K118: 9.95 | M118: 3.34 | N118: 8.65 | O118: 1 | P118: 30° | Q118: 0.6 | R118: 45° | S118: 9.83 | T118: 9.48 | U118: 38° | V118: 33.37 | W118: 0.5 | X118: 2 | Y118: 8.49 | Z118: 8.49 | AA118: 7.9 | AC118: 34.8 | AD118: SU | AE118: p /g | AJ118: 2400 | AK118: 2760 | AL118: 3120 | AM118: 17.5 | AO118: 7.62 | AP118: 7.92 | AQ118: 3.81 | AR118: 4 | AS118: 240 | AT118: C.I.P. | AU118: metrique | AV118: revolvers et pistolets | CB118: 30 US-Army | CC118: 30-40 Krag
A119: 114 | B119: 47 | C119: 7,62 x 39 | D119: 30.5 | E119: 33 | F119: 38.7 | I119: 56 | J119: 1.5 | K119: 11.35 | M119: 3.2 | N119: 9.56 | O119: 1 | P119: 51°58'12" | Q119: 0.25 | R119: 45° | S119: 11.35 | T119: 10.07 | U119: 32°46' | V119: 47.28 | W119: 4 | X119: 3 | Y119: 8.6 | Z119: 8.6 | AA119: 7.92 | AC119: 46.7 | AD119: SU | AE119: g | AJ119: 3550 | AK119: 4083 | AL119: 4440 | AM119: 25 | AN119: 2510 | AO119: 7.62 | AP119: 7.92 | AQ119: 3.81 | AR119: 4 | AS119: 240 | AT119: C.I.P. | AU119: metrique | AV119: carabine | CB119: 30 W.C.F. | CC119: 30-30 Win.
A120: 115 | B120: 48 | C120: 7,62 x 45 | D120: 36.2 | E120: 38.25 | F120: 45 | I120: 60 | J120: 1.5 | K120: 11.3 | M120: 3.99 | N120: 9.7 | O120: 1.1 | P120: 30° | Q120: 0.5 | R120: 45° | S120: 11.3 | T120: 10.56 | U120: 49°43'39" | V120: 47.59 | W120: 0.5 | X120: 0.5 | Y120: 8.66 | Z120: 8.66 | AA120: 7.83 | AC120: 65.93 | AD120: CS | AE120: g | AJ120: 4300 | AK120: 4945 | AL120: 5375 | AM120: 25 | AN120: 2515 | AO120: 7.62 | AP120: 7.88 | AQ120: 3.5 | AR120: 4 | AS120: 280 | AT120: C.I.P. | AU120: metrique | AV120: carabine | CB120: 30/06 Springfield | CC120: 30-06 Spring.
A121: 116 | B121: 183 | C121: 7,62 x 53 R | D121: 39.61 | E121: 44.05 | F121: 53.5 | I121: 77 | J121: 1.6 | K121: 14.4 | Q121: 0.6 | R121: 20° | S121: 12.42 | T121: 11.61 | U121: 38°01'38" | V121: 56.46 | W121: 0.5 | X121: 3 | Y121: 8.55 | Z121: 8.5 | AA121: 7.85 | AC121: 76.02 | AD121: FI | AE121: b | AJ121: 3900 | AK121: 4485 | AL121: 4875 | AM121: 25 | AN121: 3960 | AO121: 7.59 | AP121: 7.83 | AQ121: 4.2 | AR121: 4 | AS121: 300 | AT121: C.I.P. | AU121: metrique | AV121: carabine | CB121: 300 C.F. Long | CC121: 300/295 Rook Rifle
A122: 117 | B122: 184 | C122: 7,62 x 54 R | D122: 39.7 | E122: 44.3 | F122: 53.72 | H122: 57 | I122: 77.16 | J122: 1.6 | K122: 14.48 | Q122: 0.6 | R122: 20° | S122: 12.37 | T122: 11.61 | U122: 37°01'09" | V122: 57.04 | W122: 0.5 | X122: 0.5 | Y122: 8.53 | Z122: 8.53 | AA122: 7.92 | AB122: 7.87 | AC122: 74.8 | AD122: SU | AE122: b | AJ122: 3900 | AK122: 4485 | AL122: 4875 | AM122: 25 | AN122: 3960 | AO122: 7.62 | AP122: 7.92 | AQ122: 3.81 | AR122: 4 | AS122: 240 | AT122: C.I.P. | AU122: metrique | AV122: carabine | CB122: 300 Long C.F. | CC122: 300/295 Rook Rifle
A123: 118 | B123: 335 | C123: 7,62 Nagant | D123: 20 | E123: 20 | F123: 38.8 | I123: 37.3 | J123: 1.25 | K123: 10.3 | Q123: 0.44 | R123: 30° | S123: 9.06 | T123: 8.51 | Y123: 8.51 | Z123: 8.42 | AA123: 7.82 | AC123: 41.23 | AD123: BE | AE123: p /b | AJ123: 770 | AK123: 886 | AL123: 1001 | AM123: 17.5 | AO123: 7.62 | AP123: 7.82 | AQ123: 3.81 | AR123: 4 | AS123: 240 | AT123: C.I.P. | AU123: metrique | AV123: revolvers et pistolets | CB123: 300 Long Revolver | CC123: 300/295 Rook Rifle
A124: 119 | B124: 49 | C124: 7,62 UKM | D124: 41.57 | E124: 48.96 | F124: 57 | I124: 79 | J124: 1.52 | K124: 14.93 | M124: 3.12 | N124: 13.24 | O124: 0.9 | P124: 50°01'33" | Q124: 0.5 | R124: 45° | S124: 14.91 | T124: 14.08 | U124: 40°08'26" | V124: 60.84 | X124: 2 | Y124: 8.68 | Z124: 8.68 | AA124: 7.85 | AC124: 64.89 | AD124: DE | AE124: g | AJ124: 4400 | AK124: 5060 | AL124: 5500 | AM124: 25 | AN124: 5565 | AO124: 7.62 | AP124: 7.82 | AQ124: 2.79 | AR124: 6 | AS124: 254 | AT124: C.I.P. | AU124: metrique | AV124: carabine | CB124: 300 Rook | CC124: 300/295 Rook Rifle
A125: 120 | B125: 336 | C125: 7,63 Mauser | D125: 19.28 | E125: 21.1 | F125: 25.15 | I125: 35.08 | J125: 1.27 | K125: 9.98 | M125: 3.72 | N125: 8.73 | O125: 0.9 | P125: 20° | Q125: 0.3 | R125: 45° | S125: 9.86 | T125: 9.6 | U125: 34°46'47" | V125: 34.61 | X125: 2.5 | Y125: 8.46 | Z125: 8.46 | AA125: 7.86 | AC125: 28.22 | AD125: DE | AE125: p /g | AJ125: 2600 | AK125: 2990 | AL125: 3380 | AM125: 17.5 | AO125: 7.62 | AP125: 7.85 | AQ125: 2.65 | AR125: 6 | AS125: 250 | AT125: C.I.P. | AU125: metrique | AV125: revolvers et pistolets | CB125: 300-10-80 | CC125: 300/295 Rook Rifle
A126: 121 | B126: 50 | C126: 7,65 x 53 Arg. | D126: 44.6 | E126: 47.2 | F126: 53.6 | I126: 76 | J126: 1 | K126: 12.05 | M126: 3.2 | N126: 10.4 | O126: 1.1 | P126: 35°41'24" | Q126: 0.3 | R126: 45° | S126: 12.01 | T126: 10.9 | U126: 44°21'38" | V126: 57.97 | W126: 2.2 | X126: 2.2 | Y126: 8.78 | Z126: 8.78 | AA126: 7.94 | AC126: 73.6 | AD126: DE | AE126: g | AJ126: 3900 | AK126: 4485 | AL126: 4875 | AM126: 25 | AN126: 3700 | AO126: 7.65 | AP126: 7.92 | AQ126: 4.2 | AR126: 4 | AS126: 280 | AT126: C.I.P. | AU126: metrique | AV126: carabine | CB126: 30-06 | CC126: 30-06 Spring.
A127: 122 | B127: 339 | C127: 7,65 Parabellum | D127: 15.58 | E127: 17.62 | F127: 21.59 | I127: 29.85 | J127: 1.22 | K127: 9.98 | M127: 3.69 | N127: 8.79 | O127: 0.9 | P127: 20° | Q127: 0.3 | R127: 45° | S127: 9.93 | T127: 9.61 | U127: 30°57'41" | V127: 32.93 | X127: 2.5 | Y127: 8.48 | Z127: 8.43 | AA127: 7.85 | AC127: 27.05 | AD127: DE | AE127: p /g | AJ127: 2350 | AK127: 2703 | AL127: 3055 | AM127: 12.5 | AO127: 7.62 | AP127: 7.83 | AQ127: 3.05 | AR127: 4 | AS127: 275 | AT127: C.I.P. | AU127: metrique | AV127: revolvers et pistolets | CB127: 30-06 USA Springfield | CC127: 30-06 Spring.
A128: 123 | B128: 337 | C128: 7,65 Browning | F128: 17.2 | I128: 25 | J128: 1.25 | K128: 9.1 | M128: 3.01 | N128: 7.85 | O128: 0.8 | P128: 20° | Q128: 0.6 | R128: 45° | S128: 8.55 | Z128: 8.52 | AA128: 7.85 | AC128: 21.21 | AD128: BE | AE128: p /g | AJ128: 1600 | AK128: 1840 | AL128: 2080 | AM128: 10.5 | AO128: 7.63 | AP128: 7.83 | AQ128: 2.69 | AR128: 6 | AS128: 250 | AT128: C.I.P. | AU128: metrique | AV128: revolvers et pistolets | CB128: 301 british | CC128: 303 Savage
A129: 124 | B129: 338 | C129: 7,65 Long | F129: 19.8 | G129: 21.9 | I129: 30.5 | J129: 1.05 | K129: 8.55 | M129: 3.5 | N129: 7.5 | O129: 1.1 | P129: 21°15'02" | Q129: 0.5 | R129: 45° | S129: 8.55 | Z129: 8.55 | AA129: 7.88 | AB129: 7.88 | AC129: 29.8 | AD129: FR | AE129: p /g | AJ129: 1650 | AK129: 1898 | AL129: 2145 | AM129: 10.5 | AO129: 7.65 | AP129: 7.91 | AQ129: 4.23 | AR129: 4 | AS129: 254 | AT129: C.I.P. | AU129: metrique | AV129: revolvers et pistolets | CB129: 301 Mauser | CC129: 7,65 x 53 Arg.
A130: 125 | B130: 434 | C130: 7,7 x 58 Japanese Arisaka | D130: 47.55 | E130: 49.99 | F130: 57.66 | I130: 80.01 | J130: 1.22 | K130: 11.94 | M130: 3.81 | N130: 10.41 | O130: 0 | Q130: 0.24 | R130: 35° | S130: 11.96 | T130: 10.9 | U130: 025°30' | Y130: 8.59 | Z130: 8.56 | AA130: 7.9 | AD130: JA | AE130: g | AG130: 3 | AH130: 1 | AI130: 31 | AT130: SIERRA | CB130: 301 Savage England | CC130: 303 Savage
A131: 126 | B131: 435 | C131: 7.82 Patriot | D131: 39.4 | E131: 44.54 | F131: 51.64 | I131: 70.36 | J131: 1.4 | K131: 14.69 | M131: 4 | N131: 12.67 | O131: 1.3 | S131: 14.65 | T131: 14.19 | U131: 060°00'00" | Y131: 8.62 | Z131: 8.57 | AA131: 7.82 | AD131: US | AT131: E.C.R.A. | CB131: 30-200-06 | CC131: 30-06 Spring.
A132: 127 | B132: 51 | C132: 7,82 Warbird | D132: 58.7 | E132: 63.4 | F132: 71.37 | I132: 92.2 | J132: 1.65 | K132: 14.76 | M132: 3.94 | N132: 12.95 | O132: 1.4 | P132: 45° | Q132: 0.64 | R132: 45° | S132: 14.73 | T132: 14.22 | U132: 60°01'36" | V132: 71.01 | W132: 1.57 | X132: 1.57 | Y132: 8.79 | Z132: 8.76 | AA132: 7.84 | AC132: 76.33 | AD132: FI | AE132: g | AJ132: 4400 | AK132: 5060 | AL132: 5500 | AM132: 25 | AN132: 6760 | AO132: 7.62 | AP132: 7.82 | AQ132: 2.91 | AR132: 6 | AS132: 305 | AT132: C.I.P. | AU132: metrique | AV132: carabine | CB132: 303 Bren | CC132: 303 British
A133: 128 | B133: 52 | C133: 7,92 x 24 VBR | F133: 24 | G133: 25.24 | I133: 32.1 | J133: 1.27 | K133: 9.14 | M133: 2.9 | N133: 7.87 | O133: 0.84 | P133: 37° | Q133: 0.38 | R133: 35° | S133: 9.06 | Z133: 8.62 | AA133: 7.92 | AB133: 7.92 | AC133: 29.09 | AD133: BE | AE133: g | AJ133: 3310 | AK133: 3807 | AL133: 4300 | AM133: 17.5 | AN133: 660 | AO133: 7.62 | AP133: 7.82 | AQ133: 2.92 | AR133: 6 | AS133: 250 | AT133: C.I.P. | AU133: metrique | AV133: carabine | CB133: 303 Lee Enfield M1892 | CC133: 303 British
A134: 129 | B134: 53 | C134: 7,92 x 33 kurz | D134: 24.38 | E134: 28.03 | F134: 33 | I134: 48 | J134: 1.3 | K134: 11.95 | M134: 3.5 | N134: 10.5 | O134: 1 | P134: 31° | Q134: 0.3 | R134: 45° | S134: 11.94 | T134: 11.4 | U134: 34°58'34" | V134: 42.47 | W134: 0.5 | X134: 0.5 | Y134: 9.1 | Z134: 9.04 | AA134: 8.22 | AC134: 39.53 | AD134: DE | AE134: g | AJ134: 3400 | AK134: 3910 | AL134: 4250 | AM134: 25 | AN134: 1770 | AO134: 7.89 | AP134: 8.2 | AQ134: 4.4 | AR134: 4 | AS134: 240 | AT134: C.I.P. | AU134: metrique | AV134: carabine | CB134: 303 Lee Metford | CC134: 303 British
A135: 130 | B135: 185 | C135: 8 x 50 R | D135: 38.29 | E135: 44.17 | F135: 50.2 | I135: 76 | J135: 1.4 | K135: 14.2 | Q135: 0.5 | R135: 30° | S135: 12.6 | T135: 12.09 | U135: 29°04'45" | V135: 61.6 | W135: 10 | X135: 2 | Y135: 9.04 | Z135: 8.9 | AA135: 8.22 | AC135: 73.15 | AD135: AT | AE135: b | AJ135: 3550 | AK135: 4083 | AL135: 4440 | AM135: 25 | AN135: 3000 | AO135: 7.95 | AP135: 8.35 | AQ135: 3.5 | AR135: 4 | AS135: 250 | AT135: C.I.P. | AU135: metrique | AV135: carabine | CB135: 303 MK II | CC135: 303 British
A136: 131 | B136: 54 | C136: 8 x 51 (Mauser K) | D136: 38.09 | E136: 42.16 | F136: 50.7 | I136: 68 | J136: 1.3 | K136: 11.95 | M136: 3.2 | N136: 10.5 | O136: 0.9 | P136: 36° | Q136: 0.3 | R136: 45° | S136: 11.95 | T136: 11.15 | U136: 29°59'08" | V136: 58.91 | W136: 0.5 | X136: 0.5 | Y136: 8.97 | Z136: 8.97 | AA136: 8.07 | AC136: 85.7 | AD136: DE | AE136: g | AJ136: 3400 | AK136: 3910 | AL136: 4250 | AM136: 25 | AN136: 2635 | AO136: 7.8 | AP136: 8.07 | AQ136: 4.4 | AR136: 4 | AS136: 240 | AT136: C.I.P. | AU136: metrique | AV136: carabine | CB136: 303 Vickers | CC136: 303 British
A137: 132 | B137: 186 | C137: 8 x 56 R M30S | D137: 37.03 | E137: 49.53 | F137: 55.75 | I137: 76.5 | J137: 1.5 | K137: 14.2 | Q137: 0.5 | R137: 30° | S137: 12.55 | T137: 12.15 | U137: 13°54'41" | V137: 86.82 | W137: 10 | X137: 15 | Y137: 9.1 | Z137: 9.1 | AA137: 8.4 | AC137: 74.5 | AD137: AT | AE137: b | AJ137: 3550 | AK137: 4083 | AL137: 4440 | AM137: 25 | AN137: 3933 | AO137: 7.95 | AP137: 8.35 | AQ137: 3.5 | AR137: 4 | AS137: 250 | AT137: C.I.P. | AU137: metrique | AV137: carabine | CB137: 30-30 | CC137: 30-30 Win.
A138: 133 | B138: 55 | C138: 8 x 56 M.-Sch. | D138: 46 | E138: 48.3 | F138: 56.4 | H138: 56.7 | I138: 77.8 | J138: 1.2 | K138: 11.85 | M138: 3.3 | N138: 10.3 | O138: 1 | P138: 33°45' | R138: 90° | S138: 11.77 | T138: 10.8 | U138: 43°49'02" | V138: 59.43 | W138: 0.5 | X138: 0.5 | Y138: 8.95 | Z138: 8.9 | AA138: 8.25 | AB138: 8.25 | AC138: 77.5 | AD138: AT | AE138: g | AJ138: 3200 | AK138: 3680 | AL138: 4000 | AM138: 25 | AN138: 2860 | AO138: 7.95 | AP138: 8.3 | AQ138: 3.8 | AR138: 4 | AS138: 250 | AT138: C.I.P. | AU138: metrique | AV138: carabine | CB138: 30-30 - 165 | CC138: 30-30 Win.
A139: 134 | B139: 187 | C139: 8 x 56 R M89 Port.Krop. | D139: 38.65 | E139: 44.25 | F139: 56 | I139: 81 | J139: 2 | K139: 15.9 | Q139: 1 | R139: 23° | S139: 13.85 | T139: 12 | U139: 30° | V139: 61.04 | W139: 10 | X139: 15 | Y139: 9 | Z139: 9 | AA139: 8.2 | AC139: 76 | AD139: PT | AE139: b | AJ139: 3400 | AK139: 3910 | AL139: 4250 | AM139: 25 | AN139: 2520 | AO139: 7.85 | AP139: 8.2 | AQ139: 4.4 | AR139: 4 | AS139: 250 | AT139: C.I.P. | AU139: metrique | AV139: carabine | CB139: 31 Jap. | CC139: 7,7 x 58 Japanese Arisaka
A140: 135 | B140: 58 | C140: 8 x 57 PCC | D140: 45.82 | E140: 48.49 | F140: 57 | I140: 82 | J140: 1.4 | K140: 13.6 | M140: 3.74 | N140: 11.7 | O140: 1.2 | P140: 45° | S140: 13.97 | T140: 13.53 | U140: 79°51'50" | V140: 53.9 | W140: 1.3 | X140: 1.52 | Y140: 9.06 | Z140: 9.05 | AA140: 8.2 | AC140: 90.54 | AD140: IT | AE140: g | AJ140: 4400 | AK140: 5060 | AL140: 5500 | AM140: 25 | AN140: 5200 | AO140: 7.89 | AP140: 8.2 | AQ140: 4.4 | AR140: 4 | AS140: 240 | AT140: C.I.P. | AU140: metrique | AV140: carabine | CB140: 32 - 7,65 mm Auto | CC140: 7,65 Browning
A141: 136 | B141: 188 | C141: 8 x 57 R 360 | D141: 46 | E141: 48 | F141: 57 | I141: 77 | J141: 1.35 | K141: 12.4 | Q141: 0.3 | R141: 45° | S141: 11 | T141: 9.7 | U141: 25°54'20" | V141: 67.09 | W141: 0.5 | X141: 0.5 | Y141: 8.78 | Z141: 8.78 | AA141: 8.09 | AC141: 91 | AD141: DE | AE141: b | AJ141: 2450 | AK141: 2818 | AL141: 3060 | AM141: 25 | AN141: 2170 | AO141: 7.8 | AP141: 8.07 | AQ141: 4.4 | AR141: 4 | AS141: 240 | AT141: C.I.P. | AU141: metrique | AV141: carabine | CB141: 32 Automatic | CC141: 7,65 Browning
A142: 137 | B142: 56 | C142: 8 x 57 J | D142: 46.2 | E142: 49.03 | F142: 57 | I142: 82 | J142: 1.3 | K142: 11.95 | M142: 3.2 | N142: 10.5 | O142: 1 | P142: 38°39'36" | Q142: 0.3 | R142: 45° | S142: 11.94 | T142: 10.95 | U142: 38°12'02" | V142: 62.01 | W142: 0.5 | X142: 0.5 | Y142: 8.99 | Z142: 8.99 | AA142: 8.09 | AC142: 99 | AD142: DE | AE142: g | AJ142: 3800 | AK142: 4370 | AL142: 4750 | AM142: 25 | AN142: 3950 | AO142: 7.8 | AP142: 8.07 | AQ142: 4.4 | AR142: 4 | AS142: 240 | AT142: C.I.P. | AU142: metrique | AV142: carabine | CB142: 32 Automatic Pistole | CC142: 7,65 Browning
A143: 138 | B143: 57 | C143: 8 x 57 JS | D143: 46.2 | E143: 48.9 | F143: 57 | I143: 82 | J143: 1.3 | K143: 11.95 | M143: 3.19 | N143: 10.5 | O143: 0.9 | P143: 36° | Q143: 0.3 | R143: 45° | S143: 11.94 | T143: 10.95 | U143: 38°12'06" | V143: 62.01 | W143: 0.5 | X143: 0.5 | Y143: 9.08 | Z143: 9.08 | AA143: 8.22 | AC143: 92 | AD143: DE | AE143: g | AJ143: 3900 | AK143: 4485 | AL143: 4875 | AM143: 25 | AN143: 4300 | AO143: 7.89 | AP143: 8.2 | AQ143: 4.4 | AR143: 4 | AS143: 240 | AT143: C.I.P. | AU143: metrique | AV143: carabine | CB143: 32 C.L.M.R. | CC143: 32-20 Win.
A144: 139 | B144: 189 | C144: 8 x 57 JR | D144: 46 | E144: 48.99 | F144: 57 | I144: 82 | J144: 1.4 | K144: 13.32 | Q144: 0.3 | R144: 45° | S144: 11.92 | T144: 10.95 | U144: 36°21' | V144: 62.68 | W144: 0.5 | X144: 0.5 | Y144: 8.99 | Z144: 8.99 | AA144: 8.09 | AC144: 99 | AD144: DE | AE144: b | AJ144: 3200b | AK144: 3680b | AL144: 4000b | AM144: 25 | AN144: 3315J | AO144: 7.8 | AP144: 8.07 | AQ144: 4.4 | AR144: 4 | AS144: 240 | AT144: C.I.P. | AU144: metrique | AV144: carabine | CB144: 32 Colt | CC144: 32 Long Colt
A145: 140 | B145: 190 | C145: 8 x 57 JRS | D145: 46 | E145: 48.85 | F145: 57 | I145: 82 | J145: 1.4 | K145: 13.32 | Q145: 0.3 | R145: 45° | S145: 11.92 | T145: 10.95 | U145: 36°19'34" | V145: 62.69 | W145: 0.5 | X145: 0.5 | Y145: 9.08 | Z145: 9.08 | AA145: 8.22 | AC145: 92 | AD145: DE | AE145: b | AJ145: 3300 | AK145: 3795 | AL145: 4125 | AM145: 25 | AN145: 3955 | AO145: 7.89 | AP145: 8.2 | AQ145: 4.4 | AR145: 4 | AS145: 240 | AT145: C.I.P. | AU145: metrique | AV145: carabine | CB145: 32 Colt Automatic | CC145: 7,65 Browning
A146: 141 | B146: 191 | C146: 8 x 58 R | E146: 45.5 | F146: 58.5 | I146: 78 | J146: 1.1 | K146: 12.75 | P146: 45° | Q146: 0.3 | R146: 45° | S146: 11.05 | Y146: 8.78 | Z146: 8.78 | AA146: 8.09 | AC146: 100.5 | AD146: DE | AE146: b | AJ146: 2200 | AK146: 2530 | AL146: 2750 | AM146: 25 | AN146: 2270 | AO146: 7.8 | AP146: 8.07 | AQ146: 4.4 | AR146: 4 | AS146: 240 | AT146: C.I.P. | AU146: metrique | AV146: carabine | CB146: 32 Colt N.P. | CC146: 32 S&W Long
A147: 142 | B147: 59 | C147: 8 x 60 | D147: 48.2 | E147: 51.04 | F147: 60 | I147: 82 | J147: 1.3 | K147: 11.95 | M147: 3.2 | N147: 10.5 | O147: 1 | P147: 39°25'12" | Q147: 0.3 | R147: 45° | S147: 11.98 | T147: 10.95 | U147: 38°15'22" | V147: 63.99 | W147: 0.5 | X147: 0.5 | Y147: 8.98 | Z147: 8.98 | AA147: 8.09 | AC147: 99 | AD147: DE | AE147: g | AJ147: 4050 | AK147: 4658 | AL147: 5060 | AM147: 25 | AN147: 3900 | AO147: 7.8 | AP147: 8.07 | AQ147: 4.4 | AR147: 4 | AS147: 240 | AT147: C.I.P. | AU147: metrique | AV147: carabine | CB147: 32 Colt New Police | CC147: 32 S&W Long
A148: 143 | B148: 192 | C148: 8 x 60 R | D148: 48.22 | E148: 51.05 | F148: 60 | I148: 82 | J148: 1.4 | K148: 13.4 | Q148: 0.3 | R148: 45° | S148: 12.03 | T148: 10.95 | U148: 38°12'02" | V148: 64.03 | W148: 0.5 | X148: 0.5 | Y148: 8.99 | Z148: 8.99 | AA148: 8.09 | AC148: 99 | AD148: DE | AE148: b | AJ148: 3400b | AK148: 3910b | AL148: 4250b | AM148: 25 | AN148: 3780J | AO148: 7.8 | AP148: 8.07 | AQ148: 4.4 | AR148: 4 | AS148: 240 | AT148: C.I.P. | AU148: metrique | AV148: carabine | CB148: 32 Colt Police Positive | CC148: 32 S&W Long
A149: 144 | B149: 61 | C149: 8 x 64 | D149: 51.8 | E149: 55.79 | F149: 63.7 | I149: 86 | J149: 1.3 | K149: 12 | M149: 3.2 | N149: 10.6 | O149: 1 | P149: 36°52'12" | Q149: 0.3 | R149: 45° | S149: 11.95 | T149: 10.85 | U149: 28°00'18" | V149: 73.55 | W149: 0.5 | X149: 0.5 | Y149: 8.86 | Z149: 8.86 | AA149: 8.09 | AC149: 97.7 | AD149: DE | AE149: g | AJ149: 4050 | AK149: 4658 | AL149: 5060 | AM149: 25 | AN149: 4375 | AO149: 7.8 | AP149: 8.07 | AQ149: 4.4 | AR149: 4 | AS149: 240 | AT149: C.I.P. | AU149: metrique | AV149: carabine | CB149: 32 L.C | CC149: 32 Long Colt
A150: 145 | B150: 62 | C150: 8 x 64 S | D150: 51.8 | E150: 55.59 | F150: 64 | H150: 67.1 | I150: 87.5 | J150: 1.3 | K150: 12 | M150: 3.2 | N150: 10.6 | O150: 1 | P150: 36°48' | Q150: 0.3 | R150: 45° | S150: 11.95 | T150: 10.85 | U150: 28°00'05" | V150: 73.56 | W150: 0.5 | X150: 0.5 | Y150: 8.96 | Z150: 8.96 | AA150: 8.22 | AB150: 8.18 | AC150: 98 | AD150: DE | AE150: g | AJ150: 4050 | AK150: 4658 | AL150: 5060 | AM150: 25 | AN150: 4595 | AO150: 7.89 | AP150: 8.2 | AQ150: 4.4 | AR150: 4 | AS150: 240 | AT150: C.I.P. | AU150: metrique | AV150: carabine | CB150: 32 L.C.F | CC150: 32 Long Colt
A151: 146 | B151: 194 | C151: 8 x 65 R | D151: 51.8 | E151: 55.79 | F151: 64.7 | I151: 86 | J151: 1.4 | K151: 13.32 | Q151: 0.3 | R151: 45° | S151: 11.95 | T151: 10.85 | U151: 28°00'18" | V151: 73.55 | Y151: 8.86 | Z151: 8.86 | AA151: 8.09 | AC151: 98.7 | AD151: DE | AE151: b | AJ151: 3900 | AK151: 4485 | AL151: 4875 | AM151: 25 | AN151: 4410 | AO151: 7.8 | AP151: 8.07 | AQ151: 4.4 | AR151: 4 | AS151: 240 | AT151: C.I.P. | AU151: metrique | AV151: carabine | CB151: 32 Long | CC151: 32 Long Colt
A152: 147 | B152: 195 | C152: 8 x 65 RS | D152: 51.8 | E152: 55.59 | F152: 65 | I152: 87.5 | J152: 1.4 | K152: 13.32 | Q152: 0.3 | R152: 45° | S152: 11.99 | T152: 10.85 | U152: 28° | V152: 73.56 | W152: 0.5 | X152: 0.5 | Y152: 8.96 | Z152: 8.96 | AA152: 8.22 | AC152: 98 | AD152: DE | AE152: b | AJ152: 4050 | AK152: 4658 | AL152: 5060 | AM152: 25 | AN152: 4620 | AO152: 7.89 | AP152: 8.2 | AQ152: 4.4 | AR152: 4 | AS152: 240 | AT152: C.I.P. | AU152: metrique | AV152: carabine | CB152: 32 Long Centerfire | CC152: 32 Long Colt
A153: 148 | B153: 193 | C153: 8 x 60 RS | D153: 48.22 | E153: 50.92 | F153: 60 | I153: 83.6 | J153: 1.4 | K153: 13.4 | Q153: 0.3 | R153: 45° | S153: 12.03 | T153: 10.95 | U153: 38°12'06" | V153: 64.03 | W153: 0.5 | X153: 0.5 | Y153: 9.08 | Z153: 9.08 | AA153: 8.22 | AC153: 94 | AD153: DE | AE153: b | AJ153: 3400 | AK153: 3910 | AL153: 4250 | AM153: 25 | AN153: 4120 | AO153: 7.89 | AP153: 8.2 | AQ153: 4.4 | AR153: 4 | AS153: 240 | AT153: C.I.P. | AU153: metrique | AV153: carabine | CB153: 32 Long Colt (Outs.Lubr.) | CC153: 32 Long Colt
A154: 149 | B154: 60 | C154: 8 x 60 S | D154: 48.2 | E154: 50.9 | F154: 60 | G154: 63.2 | I154: 83.6 | J154: 1.3 | K154: 11.95 | M154: 3.2 | N154: 10.5 | O154: 1 | P154: 39°25'48" | Q154: 0.3 | R154: 45° | S154: 11.98 | T154: 10.95 | U154: 38°12'06" | V154: 64.01 | W154: 0.5 | X154: 0.5 | Y154: 9.08 | Z154: 9.08 | AA154: 8.22 | AB154: 8.18 | AC154: 94 | AD154: DE | AE154: g | AJ154: 4050 | AK154: 4658 | AL154: 5060 | AM154: 25 | AN154: 4285 | AO154: 7.89 | AP154: 8.2 | AQ154: 4.4 | AR154: 4 | AS154: 240 | AT154: C.I.P. | AU154: metrique | AV154: carabine | CB154: 32 Magnum | CC154: 32 H&R Mag.
A155: 150 | B155: 63 | C155: 8 x 68 S | D155: 53.2 | E155: 59 | F155: 67.5 | G155: 70.6 | I155: 87 | J155: 1.4 | K155: 13 | M155: 3.5 | N155: 11.2 | O155: 1 | P155: 43°42' | Q155: 0.3 | R155: 45° | S155: 13.3 | T155: 12.15 | U155: 29°05'34" | V155: 76.61 | W155: 0.5 | X155: 0.5 | Y155: 9.14 | Z155: 9.14 | AA155: 8.22 | AB155: 8.18 | AC155: 101.5 | AD155: DE | AE155: g | AJ155: 4400 | AK155: 5060 | AL155: 5500 | AM155: 25 | AN155: 5975 | AO155: 7.89 | AP155: 8.2 | AQ155: 4.4 | AR155: 4 | AS155: 280 | AT155: C.I.P. | AU155: metrique | AV155: carabine | CB155: 32 Marlin | CC155: 32-20 Win.
A156: 151 | B156: 196 | C156: 8 x 72 R | E156: 60 | F156: 72 | I156: 98 | J156: 1.3 | K156: 12.35 | Q156: 0.3 | R156: 45° | S156: 10.85 | Y156: 8.75 | Z156: 8.72 | AA156: 8.09 | AC156: 106 | AD156: DE | AE156: b | AJ156: 2800 | AK156: 3220 | AL156: 3500 | AM156: 25 | AN156: 2565 | AO156: 7.8 | AP156: 8.07 | AQ156: 4.4 | AR156: 4 | AS156: 240 | AT156: C.I.P. | AU156: metrique | AV156: carabine | CB156: 32 Police | CC156: 32 S&W Long
A157: 152 | B157: 197 | C157: 8 x 75 RS | D157: 66.2 | E157: 69.06 | F157: 74.6 | I157: 96 | J157: 1.4 | K157: 13.35 | Q157: 0.3 | R157: 45° | S157: 11.9 | T157: 10.4 | U157: 26° | V157: 88.72 | W157: 0.5 | X157: 0.5 | Y157: 9.08 | Z157: 9.08 | AA157: 8.22 | AC157: 108.6 | AD157: DE | AE157: b | AJ157: 3800 | AK157: 4370 | AL157: 4750 | AM157: 25 | AN157: 4790 | AO157: 7.89 | AP157: 8.2 | AQ157: 4.4 | AR157: 4 | AS157: 240 | AT157: C.I.P. | AU157: metrique | AV157: carabine | CB157: 32 Rimless | CC157: 32 Rem.
A158: 153 | B158: 64 | C158: 8 x 75 S | D158: 66.2 | E158: 69.06 | F158: 74.7 | I158: 96 | J158: 1.3 | K158: 11.9 | M158: 3.2 | N158: 10.3 | O158: 1 | P158: 40°54' | Q158: 0.3 | R158: 45° | S158: 11.86 | T158: 10.4 | U158: 25°59'21" | V158: 88.73 | W158: 0.5 | X158: 0.5 | Y158: 9.08 | Z158: 9.08 | AA158: 8.22 | AC158: 108.7 | AD158: DE | AE158: g | AJ158: 4400 | AK158: 5060 | AL158: 5500 | AM158: 25 | AN158: 4750 | AO158: 7.89 | AP158: 8.2 | AQ158: 4.4 | AR158: 4 | AS158: 240 | AT158: C.I.P. | AU158: metrique | AV158: carabine | CB158: 32 S & W Long (C.N.P.) | CC158: 32 S&W Long
A159: 154 | B159: 437 | C159: 8mm-06 | D159: 49.48 | E159: 52.98 | F159: 63.35 | I159: 82.5 | J159: 1.24 | K159: 12.01 | M159: 3.16 | N159: 10.39 | O159: 0.84 | Q159: 0.8 | R159: 35° | S159: 11.95 | T159: 11.2 | U159: 035° | Y159: 8.99 | Z159: 8.99 | AA159: 8.2 | AD159: US | AE159: g | AF159: lr | AG159: 3 | AH159: 1 | AI159: 32 | AO159: 7.89 | AP159: 8.2 | AT159: SPEER | CB159: 32 S & W Long N.P. | CC159: 32 S&W Long
A160: 155 | B160: 198 | C160: 8 mm – 348 Win. | D160: 41.91 | E160: 46.88 | F160: 57.28 | I160: 82 | J160: 1.78 | K160: 15.49 | Q160: 0.38 | R160: 35° | S160: 14.05 | T160: 12.32 | U160: 38°10'45" | V160: 59.71 | W160: 0.76 | X160: 2.54 | Y160: 8.88 | Z160: 8.85 | AA160: 8.22 | AC160: 66.77 | AD160: FR | AE160: b | AJ160: 3000 | AK160: 3450 | AL160: 3750 | AM160: 25 | AN160: 2600 | AO160: 7.89 | AP160: 8.2 | AQ160: 4.05 | AR160: 4 | AS160: 240 | AT160: C.I.P. | AU160: metrique | AV160: carabine | CB160: 32 S & W Long Revolver | CC160: 32 S&W Long
A161: 156 | B161: 340 | C161: 8 mm Gasser | F161: 27 | I161: 36 | J161: 1.1 | K161: 9.68 | S161: 8.6 | Z161: 8.56 | AA161: 8.11 | AC161: 27.99 | AD161: AT | AE161: p /b | AJ161: 1000 | AK161: 1150 | AL161: 1300 | AM161: 12.5 | AO161: 7.85 | AP161: 8.05 | AQ161: 3 | AR161: 6 | AS161: 150 | AT161: C.I.P. | AU161: metrique | AV161: revolvers et pistolets | CB161: 32 S & WL | CC161: 32 S&W Long
A162: 157 | B162: 342 | C162: 8 mm Steyr | F162: 18.65 | I162: 28.7 | J162: 1.1 | K162: 8.85 | M162: 3.3 | N162: 7.85 | O162: 1.1 | P162: 24°26'38" | Q162: 0.3 | R162: 45° | S162: 8.85 | Z162: 8.8 | AA162: 8.15 | AC162: 23.15 | AD162: AT | AE162: p /g | AJ162: 2100 | AK162: 2415 | AL162: 2730 | AM162: 10.5 | AO162: 7.9 | AP162: 8.15 | AQ162: 3 | AR162: 4 | AS162: 250 | AT162: C.I.P. | AU162: metrique | AV162: revolvers et pistolets | CB162: 32 S&W Revolver | CC162: 32 S&W
A163: 158 | B163: 293 | C163: 8 mm Rem. Mag. | D163: 60.69 | E163: 64.27 | F163: 72.39 | I163: 91.44 | J163: 1.27 | K163: 13.51 | L163: 13.51 | M163: 5.59 | N163: 12.07 | O163: 0.94 | P163: 35° | Q163: 0.41 | R163: 35° | S163: 13.03 | T163: 12.36 | U163: 50° | V163: 73.94 | W163: 1.02 | X163: 3.18 | Y163: 9.02 | Z163: 8.99 | AA163: 8.22 | AC163: 77.82 | AD163: US | AE163: m | AJ163: 4400 | AK163: 5060 | AL163: 5500 | AM163: 25 | AN163: 5355 | AO163: 8 | AP163: 8.2 | AQ163: 3.1 | AR163: 6 | AS163: 254 | AT163: C.I.P. | AU163: metrique | AV163: carabine magnum | CB163: 32 S&W Short | CC163: 32 S&W
A164: 159 | B164: 341 | C164: 8 mm Lebel | F164: 27.4 | G164: 32 | I164: 37 | J164: 1.5 | K164: 10.5 | Q164: 0.75 | R164: 45° | S164: 9.1 | Z164: 8.9 | AA164: 8.28 | AC164: 29.9 | AD164: FR | AE164: p /b | AJ164: 1250 | AK164: 1438 | AL164: 1625 | AM164: 12.5 | AO164: 8 | AP164: 8.3 | AQ164: 4.19 | AR164: 4 | AS164: 240 | AT164: C.I.P. | AU164: metrique | AV164: revolvers et pistolets | CB164: 32 S.& W. SA | CC164: 32 S&W
A165: 160 | B165: 436 | C165: 8 mm Nambu | D165: 15.37 | E165: 17.65 | F165: 21.8 | I165: 30.5 | J165: 0.95 | K165: 10.49 | M165: 2.65 | N165: 9.1 | O165: 0.9 | Q165: 0.3 | R165: 45° | S165: 10.36 | T165: 9.98 | Y165: 8.87 | Z165: 8.8 | AA165: 8.12 | AD165: JA | AG165: 25 | AH165: 2 | AI165: 32 | AT165: WEB | CB165: 32 S.C.F. | CC165: 32 Short Colt
A166: 161 | B166: 199 | C166: 8,15 x 46 R | D166: 30 | E166: 40 | F166: 46.5 | I166: 62.3 | J166: 1.5 | K166: 12.35 | Q166: 0.3 | R166: 45° | S166: 10.75 | T166: 9.9 | U166: 6°07'30" | V166: 122.52 | W166: 0.5 | X166: 0.5 | Y166: 8.83 | Z166: 8.83 | AA166: 8.38 | AC166: 72 | AD166: DE | AE166: b | AJ166: 1650 | AK166: 1898 | AL166: 2060 | AM166: 25 | AN166: 1785 | AO166: 7.6 | AP166: 8.03 | AQ166: 3 | AR166: 6 | AS166: 360 | AT166: C.I.P. | AU166: metrique | AV166: carabine | CB166: 32 Short C.F. | CC166: 32 Short Colt
A167: 162 | B167: 438 | C167: 8 x 51 R Lebel | D167: 36.46 | E167: 40.94 | F167: 50.5 | I167: 75 | J167: 1.7 | K167: 16 | P167: 29° | Q167: 1 | R167: 30° | S167: 13.77 | T167: 11.42 | U167: 032° | Y167: 8.94 | Z167: 8.85 | AA167: 8.3 | AD167: FR | AE167: b | AH167: 0 | AI167: 32 | AJ167: 2800 | AO167: 8 | AP167: 8.3 | AT167: MALFATI | AV167: Donne incomplette | CB167: 32 Spl. | CC167: 32 Win. Spec.
A168: 163 | B168: 200 | C168: 8,2 x 53 R | D168: 39.61 | E168: 43.55 | F168: 53.3 | I168: 76 | J168: 1.6 | K168: 14.4 | Q168: 0.6 | R168: 70° | S168: 12.42 | T168: 11.61 | U168: 37°57'24" | V168: 56.49 | Y168: 8.9 | Z168: 8.82 | AA168: 8.22 | AC168: 71.82 | AD168: FI | AE168: b | AJ168: 3400 | AK168: 3910 | AL168: 4250 | AM168: 25 | AN168: 4040 | AO168: 7.96 | AP168: 8.2 | AQ168: 3.75 | AR168: 4 | AS168: 254 | AT168: C.I.P. | AU168: metrique | AV168: carabine | CB168: 32 W.C.F. | CC168: 32-20 Win.
A169: 164 | B169: 65 | C169: 8,5 x 63 | D169: 53.42 | E169: 54.69 | F169: 63 | I169: 84 | J169: 1.24 | K169: 12.01 | M169: 3.2 | N169: 10.4 | O169: 1 | P169: 37°48'36" | Q169: 0.3 | R169: 45° | S169: 11.89 | T169: 11.47 | U169: 80°13'46" | V169: 60.23 | Y169: 9.33 | Z169: 9.32 | AA169: 8.59 | AC169: 72 | AD169: DE | AE169: g | AJ169: 4300 | AK169: 4945 | AL169: 5375 | AM169: 25 | AN169: 5540 | AO169: 8.38 | AP169: 8.59 | AQ169: 2.79 | AR169: 6 | AS169: 254 | AT169: C.I.P. | AU169: metrique | AV169: carabine | CB169: 32 W.C.F. | CC169: 32-20 Win.
A170: 165 | B170: 201 | C170: 8,5 x 63 R | D170: 53.39 | E170: 54.66 | F170: 63 | I170: 84 | J170: 1.4 | K170: 13.32 | Q170: 0.3 | R170: 45° | S170: 11.89 | T170: 11.47 | U170: 80°13'45" | V170: 60.2 | Y170: 9.33 | Z170: 9.32 | AA170: 8.59 | AC170: 72 | AD170: DE | AE170: b | AJ170: 3800 | AK170: 4370 | AL170: 4750 | AM170: 25 | AN170: 5145 | AO170: 8.38 | AP170: 8.59 | AQ170: 2.79 | AR170: 6 | AS170: 254 | AT170: C.I.P. | AU170: metrique | AV170: carabine | CB170: 32 Webley | CC170: 32 Short Colt
A171: 166 | B171: 477 | C171: 8,5 x 68 Fanzoj | D171: 53.2 | E171: 58.4 | F171: 67.5 | I171: 87 | J171: 1.4 | K171: 13 | M171: 3.5 | N171: 11.2 | O171: 1 | P171: 43°42' | Q171: 0.3 | R171: 45° | S171: 13.3 | T171: 12.15 | U171: 29°06'26" | V171: 76.6 | W171: 0.5 | X171: 3 | Y171: 9.45 | Z171: 9.45 | AA171: 8.59 | AC171: 73.7 | AD171: DE | AE171: g | AJ171: 4400 | AK171: 5060 | AL171: 5500 | AM171: 25 | AN171: 5975 | AO171: 8.38 | AP171: 8.59 | AQ171: 2.79 | AR171: 6 | AS171: 254 | AT171: C.I.P. | AU171: metrique | AV171: carabine | CB171: 32 Winchester | CC171: 32-20 Win.
A172: 167 | B172: 488 | C172: 8,5 x 75 R Scheiring | D172: 67.3 | E172: 68.5 | F172: 74.7 | I172: 96 | J172: 1.4 | K172: 13.35 | Q172: 0.3 | R172: 45° | S172: 11.9 | T172: 11.43 | U172: 80° | V172: 74.1 | Y172: 9.41 | Z172: 9.38 | AA172: 8.61 | AC172: 83.7 | AD172: AUT | AE172: b | AJ172: 3800 | AK172: 4370 | AL172: 4750 | AM172: 25 | AN172: 5500 | AO172: 8.38 | AP172: 8.59 | AQ172: 2.79 | AR172: 6 | AS172: 254 | AT172: C.I.P. | AU172: metrique | AV172: carabine | CB172: 32 Winchester C.F. | CC172: 32-20 Win.
A173: 168 | B173: 476 | C173: 8,5 mm Messner Mag. | D173: 50.88 | E173: 55.01 | F173: 63.85 | I173: 88 | J173: 1.38 | K173: 13.6 | M173: 3.48 | N173: 12.19 | O173: 1.02 | P173: 45° | Q173: 0.36 | R173: 35° | S173: 14.35 | T173: 13.93 | U173: 58° | V173: 63.44 | W173: 0.66 | X173: 1.85 | Y173: 9.35 | Z173: 9.35 | AA173: 8.59 | AC173: 75.1 | AD173: FR | AE173: g | AJ173: 4400 | AK173: 5060 | AL173: 5500 | AM173: 25 | AN173: 6400 | AO173: 8.38 | AP173: 8.59 | AQ173: 2.79 | AR173: 6 | AS173: 254 | AT173: C.I.P. | AU173: metrique | AV173: carabine | CB173: 32.40-165 | CC173: 32-40 Win.
A174: 169 | B174: 343 | C174: 9 x 18 | F174: 18 | I174: 25.5 | J174: 1.25 | K174: 9.5 | M174: 2.93 | N174: 8.25 | O174: 1 | P174: 49°59'24" | Q174: 0.6 | R174: 45° | S174: 9.87 | Z174: 9.68 | AA174: 9.02 | AC174: 20.58 | AD174: DE/AT | AE174: p /g | AJ174: 1800 | AK174: 2070 | AL174: 2340 | AM174: 9 | AO174: 8.82 | AP174: 9.02 | AQ174: 2.49 | AR174: 6 | AS174: 250 | AT174: C.I.P. | AU174: metrique | AV174: revolvers et pistolets | CB174: 32.Long, S. & W. | CC174: 32 S&W Long
A175: 170 | B175: 345 | C175: 9 x 21 | F175: 21.15 | I175: 29.75 | J175: 1.27 | K175: 9.96 | M175: 2.98 | N175: 8.79 | O175: 0.9 | P175: 35° | Q175: 0.3 | R175: 45° | S175: 9.93 | Z175: 9.63 | AA175: 9.03 | AC175: 30.6 | AD175: IL | AE175: p /g | AJ175: 2350 | AK175: 2703 | AL175: 3055 | AM175: 12.5 | AO175: 8.79 | AP175: 9.03 | AQ175: 3.8 | AR175: 4 | AS175: 254 | AT175: C.I.P. | AU175: metrique | AV175: revolvers et pistolets | CB175: 32.short | CC175: 32 Short Colt
A176: 171 | B176: 344 | C176: 9 x 20 VGW | F176: 20.15 | I176: 30.69 | J176: 1.27 | K176: 9.96 | M176: 2.98 | N176: 8.79 | O176: 0.9 | P176: 35° | Q176: 0.3 | R176: 45° | S176: 9.93 | Z176: 9.65 | AA176: 9.03 | AC176: 27.65 | AD176: AT | AE176: p /g | AJ176: 3000 | AK176: 3450 | AL176: 3900 | AM176: 12.5 | AO176: 8.82 | AP176: 9.02 | AQ176: 2.49 | AR176: 6 | AS176: 250 | AT176: C.I.P. | AU176: metrique | AV176: revolvers et pistolets | CB176: 320 (7 mm) REVOLVER | CC176: 320 Short
A177: 172 | B177: 346 | C177: 9 x 22 MJR | D177: 14.95 | E177: 16.81 | F177: 22 | I177: 29 | J177: 1.4 | K177: 10.77 | M177: 3.52 | N177: 8.81 | O177: 1.14 | P177: 45° | Q177: 0.51 | R177: 35° | S177: 10.77 | T177: 10.74 | U177: 31°31'27" | V177: 33.98 | W177: 0.5 | X177: 0.5 | Y177: 9.69 | Z177: 9.68 | AA177: 9.03 | AC177: 28.1 | AD177: AT | AE177: p /g | AJ177: 2550 | AK177: 2933 | AL177: 3315 | AM177: 12.5 | AO177: 8.82 | AP177: 9.02 | AQ177: 2.49 | AR177: 6 | AS177: 250 | AT177: C.I.P. | AU177: metrique | AV177: revolvers et pistolets | CB177: 320 C.F. | CC177: 320 Short
A178: 173 | B178: 347 | C178: 9 x 25 Super Auto G | D178: 18.51 | E178: 20 | F178: 25.35 | I178: 32.7 | J178: 1.4 | K178: 10.85 | M178: 3.62 | N178: 8.85 | O178: 1.25 | P178: 45° | Q178: 0.4 | R178: 45° | S178: 10.8 | T178: 10.72 | U178: 39°50'34" | V178: 33.3 | W178: 0.5 | X178: 0.5 | Y178: 9.64 | Z178: 9.63 | AA178: 9.03 | AC178: 28.7 | AD178: AT | AE178: p /g | AJ178: 2550 | AK178: 2933 | AL178: 3315 | AM178: 12.5 | AO178: 8.82 | AP178: 9.02 | AQ178: 2.49 | AR178: 6 | AS178: 250 | AT178: C.I.P. | AU178: metrique | AV178: revolvers et pistolets | CB178: 320 Long C.F. | CC178: 320 Long
A179: 174 | B179: 202 | C179: 9 x 53 R | D179: 39.68 | E179: 42.45 | F179: 53 | I179: 67 | J179: 1.6 | K179: 14.48 | Q179: 0.58 | R179: 19°40 | S179: 12.42 | T179: 11.61 | U179: 35°03'40" | V179: 58.06 | Y179: 9.86 | Z179: 9.86 | AA179: 9.27 | AC179: 60.7 | AD179: RU | AE179: b | AJ179: 3400 | AK179: 3910 | AL179: 4250 | AM179: 25 | AN179: 3800 | AO179: 9 | AP179: 9.25 | AQ179: 3 | AR179: 6 | AS179: 240 | AT179: C.I.P. | AU179: metrique | AV179: carabine | CB179: 320 Long Revolver | CC179: 320 Long
A180: 175 | B180: 66 | C180: 9 x 56 M.-Sch. | D180: 46.48 | E180: 48 | F180: 56.3 | I180: 81 | J180: 1.2 | K180: 11.9 | M180: 3.2 | N180: 10.3 | O180: 1 | P180: 36°52'12" | Q180: 0.3 | R180: 45° | S180: 11.8 | T180: 10.7 | U180: 38°06'33" | V180: 61.97 | W180: 0.5 | X180: 0.5 | Y180: 9.65 | Z180: 9.65 | AA180: 9.08 | AC180: 71.5 | AD180: AT | AE180: g | AJ180: 2080 | AK180: 2392 | AL180: 2600 | AM180: 25 | AN180: 2815 | AO180: 8.8 | AP180: 9.15 | AQ180: 4.4 | AR180: 4 | AS180: 280 | AT180: C.I.P. | AU180: metrique | AV180: carabine | CB180: 320 REVOLVER | CC180: 320 Short
A181: 176 | B181: 67 | C181: 9 x 57 | D181: 46.2 | E181: 47.82 | F181: 56.8 | I181: 81 | J181: 1.3 | K181: 11.95 | M181: 3.2 | N181: 10.5 | O181: 1 | P181: 38°39'35" | Q181: 0.3 | R181: 45° | S181: 11.94 | T181: 10.95 | U181: 38°08'18" | V181: 62.04 | W181: 0.5 | X181: 0.5 | Y181: 9.83 | Z181: 9.83 | AA181: 9.08 | AC181: 90.1 | AD181: DE | AE181: g | AJ181: 2800 | AK181: 3220 | AL181: 3500 | AM181: 25 | AN181: 3650 | AO181: 8.78 | AP181: 9.06 | AQ181: 4.6 | AR181: 4 | AS181: 360 | AT181: C.I.P. | AU181: metrique | AV181: carabine | CB181: 320 Rook | CC181: 320 Long
A182: 177 | B182: 203 | C182: 9 x 57 R | D182: 46.14 | E182: 47.76 | F182: 56.8 | I182: 81 | J182: 1.4 | K182: 13.4 | Q182: 0.3 | R182: 45° | S182: 11.96 | T182: 10.95 | U182: 38°08'17" | V182: 61.98 | W182: 0.5 | X182: 0.5 | Y182: 9.83 | Z182: 9.83 | AA182: 9.08 | AC182: 90.1 | AD182: DE | AE182: b | AJ182: 2800 | AK182: 3220 | AL182: 3500 | AM182: 25 | AN182: 3260 | AO182: 8.78 | AP182: 9.06 | AQ182: 3.2 | AR182: 6 | AS182: 360 | AT182: C.I.P. | AU182: metrique | AV182: carabine | CB182: 320-6-80 REVOLVER | CC182: 320 Short
A183: 178 | B183: 352 | C183: 9 mm FX &CQT | F183: 19.51 | I183: 29.03 | J183: 1.19 | K183: 9.96 | M183: 3.14 | N183: 8.79 | O183: 1.14 | P183: 35° | Q183: 0.3 | R183: 55° | S183: 9.93 | Z183: 9.75 | AA183: 7.72 | AC183: 22.69 | AD183: CA | AE183: p /g | AJ183: 350 | AK183: 403 | AL183: 455 | AM183: 12.5 | AO183: 7.59 | AP183: 7.81 | AQ183: 1.02 | AR183: 6 | AS183: 254 | AT183: C.I.P. | AU183: metrique | AV183: revolvers et pistolets | CB183: 320-8-80 Long | CC183: 320 Long
A184: 179 | B184: 440 | C184: 9 mm Glisenti | F184: 19.06 | I184: 28.99 | J184: 1.18 | K184: 9.96 | M184: 3.1 | N184: 8.79 | O184: 1 | S184: 9.91 | Z184: 9.54 | AA184: 8.97 | AD184: IT | AE184: p /g | AT184: E.C.R.A. | CB184: 32-20 Hi-Power | CC184: 32-20 Win.
A185: 180 | B185: 439 | C185: 9 mm Bergmann-Bayard (9 Largo) | F185: 23 | I185: 33 | J185: 1.4 | K185: 10 | M185: 3.75 | N185: 7.73 | O185: 1 | S185: 9.88 | Z185: 9.58 | AA185: 9.09 | AE185: g | AH185: 0 | AI185: 35 | AJ185: 2400 | AT185: MALFATI | CB185: 32-20 Marlin | CC185: 32-20 Win.
A186: 181 | B186: 354 | C186: 9 mm Steyr | F186: 23.2 | I186: 33.1 | J186: 1.25 | K186: 9.7 | M186: 3.5 | N186: 8.7 | O186: 1.3 | P186: 27°45'29" | Q186: 0.3 | R186: 45° | S186: 9.7 | Z186: 9.62 | AA186: 9.03 | AC186: 27.55 | AD186: AT | AE186: p /g | AJ186: 1350 | AK186: 1553 | AL186: 1755 | AM186: 12.5 | AO186: 8.8 | AP186: 9.02 | AQ186: 3 | AR186: 6 | AS186: 250 | AT186: C.I.P. | AU186: metrique | AV186: revolvers et pistolets | CB186: 32-20 W.C.F. | CC186: 32-20 Win.
A187: 182 | B187: 441 | C187: 9 mm Mauser | F187: 25 | I187: 35 | J187: 1.27 | K187: 9.98 | M187: 3 | N187: 8.73 | O187: 0.9 | P187: 35° | Q187: 0.3 | R187: 45° | S187: 9.89 | Z187: 9.63 | AA187: 9.03 | AC187: 33.5 | AD187: DE | AE187: p /g | AJ187: 2600 | AK187: 2990 | AL187: 3380 | AM187: 12.5 | AO187: 8.82 | AP187: 9.02 | AQ187: 2.49 | AR187: 6 | AS187: 250 | AT187: C.I.P. | AU187: metrique | AV187: revolvers et pistolets | CB187: 32-20-100 Marlin Safety | CC187: 32-20 Win.
A188: 183 | B188: 351 | C188: 9 mm FAR | F188: 24.15 | I188: 32.6 | J188: 1.27 | K188: 9.96 | M188: 2.97 | N188: 8.79 | O188: 0.89 | P188: 35° | Q188: 0.3 | R188: 45° | S188: 9.93 | Z188: 9.65 | AA188: 9.03 | AC188: 27.5 | AD188: IT | AE188: p /g | AJ188: 2600 | AK188: 2990 | AL188: 3380 | AM188: 12.5 | AO188: 8.82 | AP188: 9.02 | AQ188: 2.49 | AR188: 6 | AS188: 250 | AT188: C.I.P. | AU188: metrique | AV188: revolvers et pistolets | CB188: 32-40 Ballard | CC188: 32-40 Win.
A189: 184 | B189: 353 | C189: 9 mm Luger | F189: 19.15 | I189: 29.69 | J189: 1.27 | K189: 9.96 | M189: 2.98 | N189: 8.79 | O189: 0.9 | P189: 35° | Q189: 0.3 | R189: 45° | S189: 9.93 | Z189: 9.65 | AA189: 9.03 | AC189: 22.5 | AD189: DE | AE189: p /g | AJ189: 2350 | AK189: 2703 | AL189: 3055 | AM189: 12.5 | AO189: 8.82 | AP189: 9.02 | AQ189: 2.49 | AR189: 6 | AS189: 250 | AT189: C.I.P. | AU189: metrique | AV189: revolvers et pistolets | CB189: 32-40 Marlin | CC189: 32-40 Win.
A190: 185 | B190: 350 | C190: 9 mm Browning long | F190: 20.2 | I190: 28 | J190: 1.25 | K190: 10.2 | M190: 2.96 | N190: 8.5 | O190: 1.1 | P190: 45° | Q190: 0.3 | R190: 45° | S190: 9.72 | Z190: 9.68 | AA190: 9.09 | AC190: 25.2 | AD190: BE | AE190: p /g | AJ190: 1650 | AK190: 1898 | AL190: 2145 | AM190: 10.5 | AO190: 8.92 | AP190: 9.12 | AQ190: 3.76 | AR190: 6 | AS190: 400 | AT190: C.I.P. | AU190: metrique | AV190: revolvers et pistolets | CB190: 32-6-85 Smith & Wesson | CC190: 32 S&W
A191: 186 | B191: 349 | C191: 9 mm Browning cour | F191: 17.33 | I191: 25 | J191: 1.3 | K191: 9.53 | M191: 2.84 | N191: 8.25 | O191: 0.8 | P191: 40° | Q191: 0.5 | R191: 45° | S191: 9.53 | Z191: 9.53 | AA191: 9.04 | AC191: 19.93 | AD191: BE | AE191: p /g | AJ191: 1350 | AK191: 1553 | AL191: 1755 | AM191: 9 | AO191: 8.84 | AP191: 9.04 | AQ191: 3.07 | AR191: 6 | AS191: 250 | AT191: C.I.P. | AU191: metrique | AV191: revolvers et pistolets | CB191: 33 W.C.F. | CC191: 33 Win.
A192: 187 | B192: 348 | C192: 9 mm Makarov | F192: 18.1 | I192: 25 | J192: 1.25 | K192: 9.95 | M192: 3.5 | N192: 8.55 | O192: 1 | P192: 29°15' | Q192: 0.6 | R192: 45° | S192: 9.95 | Z192: 9.91 | AA192: 9.27 | AC192: 26.4 | AD192: SU | AE192: p /g | AJ192: 1600 | AK192: 1840 | AL192: 2080 | AM192: 10.5 | AO192: 9 | AP192: 9.27 | AQ192: 4.5 | AR192: 4 | AS192: 240 | AT192: C.I.P. | AU192: metrique | AV192: revolvers et pistolets | CB192: 34 W.C.F. | CC192: 348 Win.
A193: 188 | B193: 204 | C193: 9,3 x 53 R Finnish | D193: 39.61 | E193: 41.94 | F193: 53.3 | I193: 76 | J193: 1.6 | K193: 14.4 | Q193: 0.6 | R193: 70° | S193: 12.42 | T193: 11.61 | U193: 38°59'44" | V193: 56 | Y193: 9.96 | Z193: 9.9 | AA193: 9.3 | AC193: 76.08 | AD193: FI | AE193: b | AJ193: 3400 | AK193: 3910 | AL193: 4250 | AM193: 25 | AN193: 4300 | AO193: 9.05 | AP193: 9.28 | AQ193: 3.1 | AR193: 6 | AS193: 380 | AT193: C.I.P. | AU193: metrique | AV193: carabine | CB193: 34 Winchester | CC193: 348 Win.
A194: 189 | B194: 68 | C194: 9,3 x 57 | D194: 45.86 | E194: 47.36 | F194: 56.5 | I194: 82 | J194: 1.3 | K194: 11.95 | M194: 3.2 | N194: 10.5 | O194: 1 | P194: 38°39'36" | Q194: 0.3 | R194: 45° | S194: 11.94 | T194: 10.95 | U194: 35° | V194: 63.15 | W194: 0.5 | X194: 0.5 | Y194: 10 | Z194: 10 | AA194: 9.3 | AC194: 84.5 | AD194: DE | AE194: g | AJ194: 3000 | AK194: 3450 | AL194: 3750 | AM194: 25 | AN194: 4250 | AO194: 9 | AP194: 9.28 | AQ194: 4.6 | AR194: 4 | AS194: 360 | AT194: C.I.P. | AU194: metrique | AV194: carabine | CB194: 348 W.C.F. | CC194: 348 Win.
A195: 190 | B195: 69 | C195: 9,3 x 62 | D195: 51.79 | E195: 54.22 | F195: 62 | H195: 65.1 | I195: 83.6 | J195: 1.3 | K195: 11.95 | M195: 3.2 | N195: 10.5 | O195: 1 | P195: 41°37'48" | Q195: 0.3 | R195: 45° | S195: 12.1 | T195: 11.45 | U195: 34°56'58" | V195: 69.98 | W195: 0.5 | X195: 0.5 | Y195: 9.92 | Z195: 9.92 | AA195: 9.3 | AB195: 9.3 | AC195: 90 | AD195: DE | AE195: g | AJ195: 3900 | AK195: 4485 | AL195: 4875 | AM195: 25 | AN195: 5335 | AO195: 9 | AP195: 9.28 | AQ195: 4.6 | AR195: 4 | AS195: 360 | AT195: C.I.P. | AU195: metrique | AV195: carabine | CB195: 35 Remington Auto | CC195: 35 Rem.
A196: 191 | B196: 70 | C196: 9,3 x 64 Brenneke | D196: 52.09 | E196: 55.28 | F196: 64 | H196: 70 | I196: 85.6 | J196: 1.3 | K196: 12.6 | M196: 3.2 | N196: 11.2 | O196: 1 | P196: 43° | Q196: 0.3 | R196: 45° | S196: 12.88 | T196: 12.05 | U196: 34°58'26" | V196: 71.21 | W196: 0.5 | X196: 0.5 | Y196: 10.04 | Z196: 10.04 | AA196: 9.3 | AB196: 9.25 | AC196: 92 | AD196: DE | AE196: g | AJ196: 4400 | AK196: 5060 | AL196: 5500 | AM196: 25 | AN196: 5335 | AO196: 9 | AP196: 9.28 | AQ196: 4.6 | AR196: 4 | AS196: 360 | AT196: C.I.P. | AU196: metrique | AV196: carabine | CB196: 35 Win.Model 1895 | CC196: 35 Win.
A197: 192 | B197: 71 | C197: 9,3 x 66 Sako | D197: 55.8 | E197: 58.2 | F197: 66 | I197: 85 | J197: 1.3 | K197: 11.95 | M197: 3.24 | N197: 10.5 | O197: 1 | P197: 41° | Q197: 0.3 | R197: 45° | S197: 12.13 | T197: 11.43 | U197: 34°55'31" | V197: 73.97 | W197: 0.5 | X197: 0.5 | Y197: 9.92 | Z197: 9.92 | AA197: 9.3 | AC197: 83.01 | AD197: FI | AE197: g | AJ197: 4150 | AK197: 4773 | AL197: 5188 | AM197: 25 | AN197: 6000 | AO197: 9 | AP197: 9.28 | AQ197: 3.14 | AR197: 6 | AS197: 360 | AT197: C.I.P. | AU197: metrique | AV197: carabine | CB197: 350 Rigby | CC197: 350 Mag. Rigby
A198: 193 | B198: 205 | C198: 9,3 x 72 R | E198: 50 | F198: 72 | I198: 86 | J198: 1.3 | K198: 12.35 | Q198: 0.3 | R198: 45° | S198: 10.91 | Y198: 9.82 | Z198: 9.82 | AA198: 9.57 | AC198: 99 | AD198: DE | AE198: b | AJ198: 2000 | AK198: 2300 | AL198: 2500 | AM198: 25 | AN198: 2325 | AO198: 8.75 | AP198: 9.25 | AQ198: 4.6 | AR198: 4 | AS198: 420 | AT198: C.I.P. | AU198: metrique | AV198: carabine | CB198: 350 Rigby Magnum | CC198: 350 Mag. Rigby
A199: 194 | B199: 206 | C199: 9,3 x 74 R | D199: 59 | E199: 61.5 | F199: 74.7 | I199: 94.5 | J199: 1.4 | K199: 13.35 | Q199: 0.3 | R199: 45° | S199: 11.9 | T199: 10.4 | U199: 10°58' | V199: 113.17 | W199: 0.5 | X199: 0.5 | Y199: 9.92 | Z199: 9.92 | AA199: 9.3 | AC199: 101.1 | AD199: DE | AE199: b | AJ199: 3400 | AK199: 3910 | AL199: 4250 | AM199: 25 | AN199: 5045 | AO199: 9 | AP199: 9.28 | AQ199: 4.6 | AR199: 4 | AS199: 360 | AT199: C.I.P. | AU199: metrique | AV199: carabine | CB199: 350 Rimless Magnum | CC199: 350 Mag. Rigby
A200: 195 | B200: 478 | C200: 9,3 RSM | D200: 42.24 | E200: 44.88 | F200: 53.32 | I200: 75 | J200: 1.37 | K200: 13.59 | M200: 3.36 | N200: 12.19 | O200: 1.02 | P200: 45° | Q200: 0.36 | R200: 45° | S200: 14.12 | T200: 13.67 | U200: 70° | V200: 52 | W200: 0.8 | X200: 2.54 | Y200: 9.98 | Z200: 9.98 | AA200: 9.3 | AC200: 59.66 | AD200: DE | AE200: g | AJ200: 4400 | AK200: 5060 | AL200: 5720 | AM200: 25 | AN200: 5250 | AO200: 9 | AP200: 9.28 | AQ200: 4.6 | AR200: 6 | AS200: 406.4 | AT200: C.I.P. | AU200: metrique | AV200: carabine | CB200: 351 SL | CC200: 351 Win. SL
... 652 more rows

Sheet Plan
B1: =MATCH(D4, LISTE, 0) -> 409 | C1: Rang dans la liste déroulante ci-dessous | AE1: a
AE2: a
P3: Press ENTER pour renseigner le schéma type. | S3: g | T3: à gorge
D4: 338 Win. Mag. | S4: b | T4: à bourrelet
S5: m | T5: magnum
D6: Schema Type | S6: p /g | T6: arme de poing / à gorge
F7: Valeur en m/m | O7: =D4 -> 338 Win. Mag. | S7: p /b | T7: arme de poing / à bourrelet
B8: F | M8: L1 | N8: =VLOOKUP($D$4,TABLE,2,FALSE) -> 51.82 | O8: Distance entre la face arrière du culot et diamètre P2
M9: L2 | N9: =VLOOKUP($D$4,TABLE,3,FALSE) -> 55.11 | O9: Distance entre la face arrière et le diamètre H1 du collet
M10: L3 | N10: =VLOOKUP($D$4,TABLE,4,FALSE) -> 63.5 | O10: Longueur totale de la douille | Q10: RESULTAT
B11: G2 | C11: =N32 -> 8.38 | M11: L4 | N11: =VLOOKUP($D$4,TABLE,5,FALSE) -> 0 | O11: Distance entre la face arrière du culot et le diamètre G2
M12: L5 | N12: =VLOOKUP($D$4,TABLE,6,FALSE) -> 69.85 | O12: Distance entre la face arrière du culot et le diamètre F | Q12: 223 Rem.
M13: L6 | N13: =VLOOKUP($D$4,TABLE,7,FALSE) -> 84.84 | O13: Longueur totale de la cartouche
B14: G1 | C14: =N31 -> 8.61 | M14: R | N14: =VLOOKUP($D$4,TABLE,8,FALSE) -> 1.27 | O14: Epaisseur du bourrelet
M15: R1 | N15: =VLOOKUP($D$4,TABLE,9,FALSE) -> 13.51 | O15: Diamètre du bourrelet | Q15: 5,56 Mle F
B16: H2 | C16: =N30 -> 9.37 | M16: R3 | N16: =VLOOKUP($D$4,TABLE,10,FALSE) -> 13.51 | O16: Diamètre du culot magnum
M17: E | N17: =VLOOKUP($D$4,TABLE,11,FALSE) -> 5.59 | O17: Hauteur du culot
M18: E1 | N18: =VLOOKUP($D$4,TABLE,12,FALSE) -> 12.07 | O18: Diamètre de la gorge
M19: Emin | N19: =VLOOKUP($D$4,TABLE,13,FALSE) -> 0.94 | O19: Largeur de la gorge
M20: DELTA | N20: =VLOOKUP($D$4,TABLE,14,FALSE) -> 35° | O20: Demi angle de la gorge (entre E1 et P1)
M21: f | N21: =VLOOKUP($D$4,TABLE,15,FALSE) -> 0.41 | O21: Largeur du chanfrein du bourrelet | Q21: Press ENTER pour voir le résultat.
M22: BETA | N22: =VLOOKUP($D$4,TABLE,16,FALSE) -> 35° | O22: Angle du chanfrein du bourrelet
B23: H1 | C23: =N29 -> 9.4 | M23: P1 | N23: =VLOOKUP($D$4,TABLE,17,FALSE) -> 13.03 | O23: Diamétre sous bourrelet ou à l'avant de la gorge
M24: P2 | N24: =VLOOKUP($D$4,TABLE,18,FALSE) -> 12.47 | O24: Diamétre de la douille à la distance L1
M25: ALPHA | N25: =VLOOKUP($D$4,TABLE,19,FALSE) -> 50° | O25: Angle du cône de raccordement
B26: P2 | C26: =N24 -> 12.47 | M26: S | N26: =VLOOKUP($D$4,TABLE,20,FALSE) -> 65.19 | O26: Distance du sommet du cône de raccordement
M27: R1min | N27: =VLOOKUP($D$4,TABLE,21,FALSE) -> 1.02 | O27: Rayon de raccordement à l'extremité de P2
M28: R2 | N28: =VLOOKUP($D$4,TABLE,22,FALSE) -> 3.18 | O28: Rayon de raccordement entre cône de raccordement et collet
M29: H1 | N29: =VLOOKUP($D$4,TABLE,23,FALSE) -> 9.4 | O29: Diamètre au collet à la distance L2
M30: H2 | N30: =VLOOKUP($D$4,TABLE,24,FALSE) -> 9.37 | O30: Diamètre à la bouche de la douille à la distance L3
M31: G1 | N31: =VLOOKUP($D$4,TABLE,25,FALSE) -> 8.61 | O31: Diamètre maximum du projectile à la bouche de la douille
B32: Alpha (Angle) | M32: G2 | N32: =VLOOKUP($D$4,TABLE,26,FALSE) -> 8.38 | O32: Diamètre du projectile à la distance L4
B33: =N25 -> 50° | H33: S | M33: L3PG | N33: =VLOOKUP($D$4,TABLE,27,FALSE) -> 69.27 | O33: Distance entre la face arrière et la prise de rayures
H34: =N26 -> 65.19 | L34: L6 | M34: Pmax | N34: =VLOOKUP($D$4,TABLE,34,FALSE) -> 4300 | O34: Pression maximale moyenne (bar) (méthode crusher)
L35: =N13 -> 84.84 | M35: FC | N35: =VLOOKUP($D$4,TABLE,39,FALSE) -> 8.38 | O35: Diamètre minimum d'alésage du canon
K36: L5 | M36: ZC | N36: =VLOOKUP($D$4,TABLE,40,FALSE) -> 8.59 | O36: Diamètre minimum du canon à fond de rayures
K37: =N12 -> 69.85 | M37: PO | N37: =VLOOKUP($D$4,TABLE,28,FALSE) -> US | O37: Pays d'origine
J38: L4 | M38: TYPE | N38: =VLOOKUP($D$4,TABLE,29,FALSE) -> m | O38: g gorge, b bourrelet, m magnum, p arme de poing (suivant CIP)
J39: =N11 -> 0 | M39: AM | N39: =VLOOKUP($D$4,TABLE,30,FALSE) -> 0 | O39: Type d'amorce si Boxer
I40: L3 | M40: SH | N40: =VLOOKUP($D$4,TABLE,31,FALSE) -> 0 | O40: Préconisation numéro de shell holder RCBS
B41: Delta (Angle) | I41: =N10 -> 63.5 | M41: PIL | N41: =VLOOKUP($D$4,TABLE,32,FALSE) -> 0 | O41: Préconisation pilote du case trimer Forster
B42: =N20 -> 35° | G42: L2 | M42: COL | N42: =VLOOKUP($D$4,TABLE,33,FALSE) -> 0 | O42: Préconisation collet du case trimer Forster
G43: =N9 -> 55.11 | M43: u | N43: =VLOOKUP($D$4,TABLE,43,FALSE) -> 254 | O43: Pas des rayures (mm)
F44: L1 | M44: N | N44: =VLOOKUP($D$4,TABLE,42,FALSE) -> 6 | O44: Nombre de rayures
B45: P1 | C45: =N23 -> 13.03 | F45: =N8 -> 51.82 | M45: b | N45: =VLOOKUP($D$4,TABLE,41,FALSE) -> 2.79 | O45: Largeur des rayures (mm)
M46: ORIG | N46: =VLOOKUP($D$4,TABLE,44,FALSE) -> C.I.P. | O46: Origine des informations pour le calibre
B47: E1 | C47: =N18 -> 12.07
B48: R1 | C48: =N15 -> 13.51
B51: Beta (Angle)
B52: =N22 -> 35° | F52: E | G52: =N17 -> 5.59
D53: TYPE DE CULOT | F53: E min | G53: =N19 -> 0.94
D54: =IF(N38=0,"",VLOOKUP(N38,S3:T7,2,FALSE)) -> magnum | F54: R | G54: =N14 -> 1.27
F55: f | G55: =N21 -> 0.41
A66: 11111

Sheet Dynamique
A1: =VLOOKUP($D5,TABLE,2,FALSE) -> 55.78 | B1: =VLOOKUP($D5,TABLE,3,FALSE) -> 59.85 | C1: =VLOOKUP($D5,TABLE,4,FALSE) -> 66.55 | D1: =VLOOKUP($D5,TABLE,5,FALSE) -> 0 | E1: =VLOOKUP($D5,TABLE,6,FALSE) -> 0 | F1: =VLOOKUP($D5,TABLE,7,FALSE) -> 84.84 | G1: =VLOOKUP($D5,TABLE,8,FALSE) -> 1.27 | H1: =VLOOKUP($D5,TABLE,9,FALSE) -> 13.51 | I1: =VLOOKUP($D5,TABLE,10,FALSE) -> 13.51 | J1: =VLOOKUP($D5,TABLE,11,FALSE) -> 5.59 | K1: =VLOOKUP($D5,TABLE,12,FALSE) -> 12.07 | L1: =VLOOKUP($D5,TABLE,13,FALSE) -> 0.94 | M1: =VLOOKUP($D5,TABLE,14,FALSE) -> 35° | N1: =VLOOKUP($D5,TABLE,15,FALSE) -> 0.41 | O1: =VLOOKUP($D5,TABLE,16,FALSE) -> 35° | P1: =VLOOKUP($D5,TABLE,17,FALSE) -> 13.03 | Q1: =VLOOKUP($D5,TABLE,18,FALSE) -> 12.42 | R1: =VLOOKUP($D5,TABLE,19,FALSE) -> 50° | S1: =VLOOKUP($D5,TABLE,20,FALSE) -> 69.1 | T1: =VLOOKUP($D5,TABLE,21,FALSE) -> 1.02 | U1: =VLOOKUP($D5,TABLE,22,FALSE) -> 2.54 | V1: =VLOOKUP($D5,TABLE,23,FALSE) -> 8.63 | W1: =VLOOKUP($D5,TABLE,24,FALSE) -> 8.63 | X1: =VLOOKUP($D5,TABLE,25,FALSE) -> 7.85 | Y1: =VLOOKUP($D5,TABLE,26,FALSE) -> 0 | Z1: =VLOOKUP($D5,TABLE,29,FALSE) -> m | AA1: =MATCH(D5, LISTE, 0) -> 372 | AB1: =MATCH(LOOKUP("z",CIP!C:C),CIP!C:C,0) -> 501 | AC1: 6
A2: =VLOOKUP($P5,TABLE,2,FALSE) -> 27.51 | B2: =VLOOKUP($P5,TABLE,3,FALSE) -> 31.72 | C2: =VLOOKUP($P5,TABLE,4,FALSE) -> 39.52 | D2: =VLOOKUP($P5,TABLE,5,FALSE) -> 0 | E2: =VLOOKUP($P5,TABLE,6,FALSE) -> 0 | F2: =VLOOKUP($P5,TABLE,7,FALSE) -> 53.34 | G2: =VLOOKUP($P5,TABLE,8,FALSE) -> 1.37 | H2: =VLOOKUP($P5,TABLE,9,FALSE) -> 12.01 | I2: =VLOOKUP($P5,TABLE,10,FALSE) -> 0 | J2: =VLOOKUP($P5,TABLE,11,FALSE) -> 3.85 | K2: =VLOOKUP($P5,TABLE,12,FALSE) -> 10.39 | L2: =VLOOKUP($P5,TABLE,13,FALSE) -> 1.4 | M2: =VLOOKUP($P5,TABLE,14,FALSE) -> 36° | N2: =VLOOKUP($P5,TABLE,15,FALSE) -> 0.4 | O2: =VLOOKUP($P5,TABLE,16,FALSE) -> 45° | P2: =VLOOKUP($P5,TABLE,17,FALSE) -> 11.96 | Q2: =VLOOKUP($P5,TABLE,18,FALSE) -> 11.6 | R2: =VLOOKUP($P5,TABLE,19,FALSE) -> 0 | S2: =VLOOKUP($P5,TABLE,20,FALSE) -> 0 | T2: =VLOOKUP($P5,TABLE,21,FALSE) -> 0 | U2: =VLOOKUP($P5,TABLE,22,FALSE) -> 0.32 | V2: =VLOOKUP($P5,TABLE,23,FALSE) -> 5.95 | W2: =VLOOKUP($P5,TABLE,24,FALSE) -> 5.94 | X2: =VLOOKUP($P5,TABLE,25,FALSE) -> 5.18 | Y2: =VLOOKUP($P5,TABLE,26,FALSE) -> 0 | Z2: =VLOOKUP($P5,TABLE,29,FALSE) -> g | AA2: =MATCH(P5, LISTE, 0) -> 3
A3: L1 | B3: L2 | C3: L3 | D3: L4 | E3: L5 | F3: L6 | G3: R | H3: R1 | I3: R3 | J3: E | K3: E1 | L3: EMIN | M3: DELTA | N3: F | O3: BETA | P3: P1 | Q3: P2 | R3: ALPHA | S3: S | T3: R1MIN | U3: R2 | V3: H1 | W3: H2 | X3: G1 | Y3: G2 | Z3: TYPE
D4: =IF(VLOOKUP($D5,TABLE,44,FALSE)=0,"Non renseigné",VLOOKUP($D5,TABLE,44,FALSE)) -> C.I.P. | P4: =IF(VLOOKUP($P5,TABLE,44,FALSE)=0,"Non renseigné",VLOOKUP($P5,TABLE,44,FALSE)) -> C.I.P.
D5: 300 Win. Mag. | J5: ZOOM | K5: 5 | P5: 5 mm /35 SMc
I21: Zoom 5
L37: Zoom 5
A56: 111

Sheet Inser
C2: MISE EN PLACE D'UN NOUVEAU CALIBRE (Dans l'onglet CIP) | U2: Format Texte
U3: xx°xx'xx" ou xx°
C4: Calibre | D4: L1 | E4: L2 | F4: L3 | G4: L4 | H4: L5 | I4: L6 | J4: R | K4: R1 | L4: R3 | M4: E | N4: E1 | O4: EMIN | P4: DELTA | Q4: F | R4: BETA | S4: P1 | T4: P2 | U4: ALPHA | V4: S | W4: R1MIN | X4: R2 | Y4: H1 | Z4: H2 | AA4: G1 | AB4: G2 | AC4: L3PG | AD4: PO | AE4: TYPE | AF4: AM | AG4: SH | AH4: COL | AI4: PIL | AJ4: PMAX | AK4: PK | AL4: PE | AM4: M | AN4: EE | AO4: FC | AP4: ZC | AQ4: B | AR4: N | AS4: U | AT4: ORIG | AU4: MS | AV4: ARME
C5: 356 TSW | F5: 21.59 | I5: 29.46 | J5: 1.27 | K5: 10.01 | M5: 2.95 | N5: 8.81 | O5: 0.89 | P5: 35° | Q5: 0.38 | R5: 35° | S5: 9.92 | Z5: 9.66 | AA5: 9.04 | AE5: p /g | AT5: SAAMI | AU5: pouce | AV5: revolvers et pistolets
C6: Remplire les cases ci-dessus
AY11: Calcul de E
AY12: =(E48-F48)/2 -> 0.555
AY13: =MID(G48,1,2)*1 -> 35
AY14: =IF(ISERROR((MID(G48,4,2))/60),"",MID(G48,4,2)/60) -> 
AD15: Etui à bourlet : | AE15: g | AY15: =IF(ISERROR((MID(G48,7,2))/60),"",MID(G48,7,2)/3600) -> 
E16: COMMENT OBTENIR LE DESSIN DE L'ETUI | R16: PLACER LA LIGNE AVANT / SUPPRIMER CETTE LIGNE | AD16: Etui à gorge : | AE16: b | AY16: =SUM(AY13:AY15) -> 35
AD17: Arme de poing à bourlet : | AE17: p /b | AY17: =90-AY16 -> 55
F18: Valeur indispensable pour un étui droit à bourlet (Dessin de base). | AD18: Arme de poing à gorge : | AE18: p /g | AY18: =PI()*AY17/180 -> 0.9599310886
AD19: Magnum : | AE19: m | AY19: =TAN(AY18) -> 1.428148007
F20: Valeur indispensable pour un étui droit à gorge. | AY20: =AY19*AY12 -> 0.7926221437
AY21: =O5 -> 0.89
F22: Valeur indispensable pour un étui à cone et à bourlet | AY22: =J5 -> 1.27
AA23: 356 Win. | AY23: =SUM(AY20:AY22) -> 2.952622144
F24: Valeur indispensable pour un étui à cone et à gorge. | AA24: 416 | AB24: 0
AY25: Calcul de S | AZ25: SAAMI
F26: Valeur indispensable pour un étui Magnum à cone et à gorge. | R26: Double-cliquer pour faire un choix. | AY26: =T5/2 -> 0 | AZ26: Coté Adjacent
AY27: =MID(U5,1,2)*1 ->  | AZ27: degre
AY28: =IF(ISERROR((MID(U5,4,2))/60),"",MID(U5,4,2)/60) ->  | AZ28: minute
AY29: =IF(ISERROR((MID(U5,7,2))/60),"",MID(U5,7,2)/3600) ->  | AZ29: seconde
AY30: =SUM(AY27:AY29) ->  | AZ30: degre,degre
AY31: =90-AY30 ->  | AZ31: 90° - angle
AY32: =PI()*AY31/180 ->  | AZ32: Radian
AY33: =TAN(AY32) ->  | AZ33: tang
AY34: =AY26*AY33 ->  | AZ34: Coté Opposé
AY35: =D5 -> 0 | AZ35: L1
AY36: =AY35+AY34 -> 
AY38: Calcul de S | AZ38: CIP
AY39: =T5/2 -> 0 | AZ39: Coté Adjacent
D40: SAAMI (AIDE au calcul des valeurs CIP - Alpha - E - S ) | AU40: 1.688148148 | AY40: =MID(U5,1,2)*1 ->  | AZ40: degre
E41: Degré | F41: Minute | G41: Seconde | AY41: =IF(ISERROR((MID(U5,4,2))/60),"",MID(U5,4,2)/60) ->  | AZ41: minute
E42: ANGLE SAAMI | H42: ANGLE CIP | AY42: =IF(ISERROR((MID(U5,7,2))/60),"",MID(U5,7,2)/3600) ->  | AZ42: seconde
F43: Format (dd:mm:ss) | H43: ALPHA | AV43: =INT(AU40*24) -> 40 | AY43: =(E53*24)/2 -> 25 | AZ43: degre,degre
E44: 1.041666667 | H44: =E44*2 -> 2.083333333 | AV44: =E53*24 -> 50 | AY44: =90-AY43 -> 65 | AZ44: 90° - angle
E45: (Ex xx:xx:xx) | AY45: =PI()*AY44/180 -> 1.134464014 | AZ45: Radian
E46: Calcule de la hauteur du culot : E (Sauf Magnum) | AY46: =TAN(AY45) -> 2.144506921 | AZ46: tang
E47: P1 | F47: E1 | G47: DELTA | I47: EMIN | J47: R | K47: E | AY47: =(H53/2)*AY46 -> 0 | AZ47: Coté Opposé
E48: =S5 -> 9.92 | F48: =N5 -> 8.81 | G48: =P5 -> 35° | I48: =O5 -> 0.89 | J48: 1.27 | K48: =IF(AY23<0,"P1",ROUND(AY23,2)) -> 2.95 | AY48: =I53 -> 0 | AZ48: L1
E49: Report automatique avec la ligne du haut | AY49: =AY48+AY47 -> 0
E51: Calcul de la distance du sommet du cône de raccordement : S (Sur angle CIP)
E52: ALPHA (CIP) | H52: P2 | I52: L1 | J52: S
E53: =H44 -> 2.083333333 | H53: =T5 -> 0 | I53: =D5 -> 0 | J53: =ROUND(AY49,2) -> 0
